Workbook

Sheet Data summary
A1: NOTE: See results starting O16 for answer pertaining to OEB #77
A5: RUN # 2 | B5: Rate classes | C5: Weather station used for normalization | H5: Test Year
A6: 1 | B6: Residential class | C6: Windsor | H6: 2004
A7: 2 | B7: Street lighting
A8: 3 | B8: Sentinel lighting
A9: 4 | B9: General service <50kW
A10: 5 | B10: General service >50kW
A11: 6 | B11: Large user
A12: 7 | B12: USL
A13: 8 | B13: Standby
A14: 9 | B14: Intermediate
O16: A | P16: B | Q16: C=A/B | R16: D
A17: Monthly kWh by class (with actual weather) | C17: Jan | D17: Feb | E17: Mar | F17: Apr | G17: May | H17: Jun | I17: Jul | J17: Aug | K17: Sep | L17: Oct | M17: Nov | N17: Dec | O17: Total Actual kWh | P17: Actual Billed kWh | Q17: Adjustment Factor | R17: Actual 2004 Customer Connections
A18: 1 | B18: Residential class | C18: 25407558.51 | D18: 21613365.29 | E18: 25812856.32 | F18: 11217437.4 | G18: 17512291.27 | H18: 19057920.82 | I18: 24039991.05 | J18: 25274325.28 | K18: 17879949.46 | L18: 21621007.72 | M18: 14806525.07 | N18: 21670939.78 | O18: 245914168 | P18: 236011018 | Q18: =O18/P18 -> 1.041960541 | R18: 28200
A19: 2 | B19: Street lighting | C19: 848665.92 | D19: 723035 | E19: 681963.73 | F19: 571968.5 | G19: 530416.2 | H19: 454642.5 | I19: 515269.23 | J19: 560724.52 | K19: 630633 | L19: 742582.18 | M19: 791957.2 | N19: 833510.95 | O19: 7885368.93 | P19: 7564852 | Q19: =O19/P19 -> 1.042369227 | R19: 10465
A20: 3 | B20: Sentinel lighting | C20: 46092.97 | D20: 39710.86 | E20: 38018.4 | F20: 32396.1 | G20: 29663.9 | H20: 26894.7 | I20: 28896.03 | J20: 32360.9 | K20: 35547.6 | L20: 41251.08 | M20: 43730.4 | N20: 45623.43 | O20: 440186.37 | P20: 421369 | Q20: 1.044657699 | R20: 361
A21: 4 | B21: General service <50kW | C21: 11816241.12 | D21: 11129064.93 | E21: 9749882.57 | F21: 4022461.282 | G21: 9172007.336 | H21: 5819207.862 | I21: 14498388.82 | J21: 9303212.092 | K21: 5176313.197 | L21: 10750158.63 | M21: 6525684.326 | N21: 7377829.21 | O21: 105340451.4 | P21: 101078860 | Q21: 1.042161055 | R21: 3233
A22: 5 | B22: General service >50kW | C22: 22145765.95 | D22: 20422900.84 | E22: 18288528.6 | F22: 32514250.78 | G22: 22537426.57 | H22: 27395562.39 | I22: 19792494.97 | J22: 21360123.94 | K22: 31610376.67 | L22: 15691962.69 | M22: 28831020.61 | N22: 27329640.85 | O22: 287920054.9 | P22: 216724523 | Q22: 1.328507041 | R22: 360
A23: 6 | B23: Large user | C23: 4259000.444 | D23: 3841137.685 | E23: 4179955.535 | F23: 3831028.397 | G23: 3877126.107 | H23: 4435976.87 | I23: 3542199.289 | J23: 4488589.767 | K23: 4741501.572 | L23: 4598570.463 | M23: 4495901.322 | N23: 3664041.522 | O23: 49955028.97 | P23: 0 | R23: 0
A24: 7 | B24: USL | C24: 73777.5 | D24: 73777.5 | E24: 73777.5 | F24: 73777.5 | G24: 73777.5 | H24: 73777.5 | I24: 73777.5 | J24: 73777.5 | K24: 73777.5 | L24: 73777.5 | M24: 73777.5 | N24: 73777.5 | O24: 885330 | P24: 885330 | Q24: 1 | R24: 193
A25: 8 | B25: Standby | C25: 2100788.202 | D25: 1885747.92 | E25: 2143362.829 | F25: 2648793.249 | G25: 2150453.545 | H25: 3447103.188 | I25: 3520566.363 | J25: 3424708.681 | K25: 3055109.796 | L25: 3745852.105 | M25: 2306025.604 | N25: 2047959.661 | O25: 32476471.14 | P25: 31347945 | Q25: 1.036000004 | R25: 1
A26: 9 | B26: Intermediate | C26: 12851447.27 | D26: 13048381.84 | E26: 14572461.64 | F26: 13638884.39 | G26: 14755704.66 | H26: 15399929.36 | I26: 13842750.01 | J26: 15991873.73 | K26: 15673915.81 | L26: 15165396.9 | M26: 14360582.56 | N26: 12466789.48 | O26: 171768117.7 | P26: 274056459 | Q26: =(O26+O23)/P26 -> 0.8090418575 | R26: 20
O27: =SUM(O18:O26) -> 902585177.3 | P27: =SUM(P18:P26) -> 868090356 | R27: =SUM(R18:R26) -> 42833
O31: E | P31: F=E/C | Q31: G=F/D | R31: H | S31: I | T31: J=H*G | U31: K=I*G
O32: Total Normalized kWh | P32: Adjusted NAC kWh | Q32: 2004 NAC | R32: Forecasted Customer Count | T32: Forecasted kWh NAC Purchases
A33: Monthly kWh by class (with normalized weather) | C33: Jan | D33: Feb | E33: Mar | F33: Apr | G33: May | H33: Jun | I33: Jul | J33: Aug | K33: Sep | L33: Oct | M33: Nov | N33: Dec | R33: 2009 | S33: 2010 | T33: 2009 | U33: 2010
A34: 1 | B34: Residential class | C34: 25013749.29 | D34: 21750108.23 | E34: 26151932.55 | F34: 11197109.74 | G34: 17279717.88 | H34: 20314517.53 | I34: 25224372.93 | J34: 26935489.21 | K34: 17016505.81 | L34: 21898619.87 | M34: 15162897.75 | N34: 21649938.24 | O34: 249594959 | P34: =O34/Q18 -> 239543580.8 | Q34: =P34/R18 -> 8494.453219 | R34: 28574 | S34: 28644 | T34: =R34*Q34 -> 242720506.3 | U34: =S34*Q34 -> 243315118
A35: 2 | B35: Street lighting | C35: 848665.92 | D35: 723035 | E35: 681963.73 | F35: 571968.5 | G35: 530416.2 | H35: 454642.5 | I35: 515269.23 | J35: 560724.52 | K35: 630633 | L35: 742582.18 | M35: 791957.2 | N35: 833510.95 | O35: 7885368.93 | P35: =O35/Q19 -> 7564852 | Q35: 722.8716675 | R35: 10715 | S35: 10751 | T35: =R35*Q35 -> 7745569.917 | U35: =S35*Q35 -> 7771593.297
A36: 3 | B36: Sentinel lighting | C36: 46092.97 | D36: 39710.86 | E36: 38018.4 | F36: 32396.1 | G36: 29663.9 | H36: 26894.7 | I36: 28896.03 | J36: 32360.9 | K36: 35547.6 | L36: 41251.08 | M36: 43730.4 | N36: 45623.43 | O36: 440186.37 | P36: 421369 | Q36: 1167.227147 | R36: 335 | S36: 327 | T36: 391021.0942 | U36: 381683.277
A37: 4 | B37: General service <50kW | C37: 11498296.23 | D37: 11239465.57 | E37: 10023638.33 | F37: 4006049.987 | G37: 8993797.852 | H37: 6673734.366 | I37: 15303805.87 | J37: 10432856.94 | K37: 4558570.556 | L37: 10974290.74 | M37: 6813404.039 | N37: 7360873.06 | O37: 107878783.5 | P37: 103514502.9 | Q37: 32018.09554 | R37: 3067 | S37: 3038 | T37: 98199499.03 | U37: 97270974.26
A38: 5 | B38: General service >50kW | C38: 21835651.3 | D38: 20530582.39 | E38: 18555542.43 | F38: 32498243.27 | G38: 22367483.86 | H38: 28164445.78 | I38: 20517191.73 | J38: 22376552.96 | K38: 31039953.32 | L38: 15910575.14 | M38: 29111654.95 | N38: 27313102.67 | O38: 290220979.8 | P38: 218456485.9 | Q38: 606823.572 | R38: 415 | S38: 421 | T38: 251831782.4 | U38: 255472723.8
A39: 6 | B39: Large user | C39: 4259000.444 | D39: 3841137.685 | E39: 4179955.535 | F39: 3831028.397 | G39: 3877126.107 | H39: 4435976.87 | I39: 3542199.289 | J39: 4488589.767 | K39: 4741501.572 | L39: 4598570.463 | M39: 4495901.322 | N39: 3664041.522 | O39: 49955028.97 | R39: 0 | S39: 0 | T39: 0 | U39: 0
A40: 7 | B40: USL | C40: 73777.5 | D40: 73777.5 | E40: 73777.5 | F40: 73777.5 | G40: 73777.5 | H40: 73777.5 | I40: 73777.5 | J40: 73777.5 | K40: 73777.5 | L40: 73777.5 | M40: 73777.5 | N40: 73777.5 | O40: 885330 | P40: 885330 | Q40: 4587.202073 | R40: 194 | S40: 194 | T40: 889917.2021 | U40: 889917.2021
A41: 8 | B41: Standby | C41: 2100788.202 | D41: 1885747.92 | E41: 2143362.829 | F41: 2648793.249 | G41: 2150453.545 | H41: 3447103.188 | I41: 3520566.363 | J41: 3424708.681 | K41: 3055109.796 | L41: 3745852.105 | M41: 2306025.604 | N41: 2047959.661 | O41: 32476471.14 | P41: 31347945 | Q41: 31347945 | R41: 1 | S41: 1 | T41: 31347945 | U41: 31347945
A42: 9 | B42: Intermediate | C42: 12844215.34 | D42: 13050892.99 | E42: 14578688.45 | F42: 13638511.1 | G42: 14748513.17 | H42: 15471583.01 | I42: 13910285.83 | J42: 16086596.61 | K42: 15633899.93 | L42: 15170494.98 | M42: 14367127 | N42: 12466403.81 | O42: 171967212.2 | P42: 212556631.8 | Q42: 10627831.59 | R42: 25 | S42: 28 | T42: 265695789.8 | U42: 297579284.5
O43: =SUM(O34:O42) -> 911304320 | P43: =SUM(P34:P42) -> 814290697.4 | R43: =SUM(R34:R42) -> 43326 | S43: =SUM(S34:S42) -> 43404 | T43: =SUM(T34:T42) -> 898822030.7 | U43: 934029239.4
A45: Residential class information | C45: Equipment saturation
B46: Electric space heating | C46: 0.08
B47: Electric water heating | C47: 0.12
B48: Air conditioning | C48: 0.55
B49: Baseload | C49: 1
A52: General service >50kW | C52: 2004 kWh (Actual) | D52: 2004 kWh (Weather Corrected)
B53: Weather sensitive load | C53: 143708586.5 | D53: 146009511.4
B54: Non-weather sensitive load | C54: 144211468.4 | D54: 144211468.4
B55: TOTAL | C55: 287920054.9 | D55: 290220979.8
A58: Large customers | C58: 2004 kWh (Actual) | D58: 2004 kWh (Weather Corrected)
B59: Weather sensitive load | C59: 0 | D59: 0
B60: Non-weather sensitive load | C60: 49955028.97 | D60: 49955028.97
B61: TOTAL | C61: 49955028.97 | D61: 49955028.97
A64: Stand By | C64: 2004 kWh (Actual) | D64: 2004 kWh (Weather Corrected)
B65: Weather sensitive load | C65: 0 | D65: 0
B66: Non-weather sensitive load | C66: 32476471.14 | D66: 32476471.14
B67: TOTAL | C67: 32476471.14 | D67: 32476471.14
A70: Intermediate | C70: 2004 kWh (Actual) | D70: 2004 kWh (Weather Corrected)
B71: Weather sensitive load | C71: 9443475.35 | D71: 9642569.897
B72: Non-weather sensitive load | C72: 162324642.3 | D72: 162324642.3
B73: TOTAL | C73: 171768117.7 | D73: 171967212.2

Sheet Hourly load shapes by class
A1: ALL UNITS IN GWh
A2: Year | B2: Month | C2: Day | D2: Hour (EST) | E2: Residential | F2: GS>50kW | G2: Street Lighting | H2: Sentinel Lighting | I2: Large User | J2: GS < 50 kW | K2: Intermediate | L2: USL | M2: Stand By | N2: TOTAL LDC sales | O2: =E2 -> Residential | P2: GS>50kW | Q2: Street Lighting | R2: Sentinel Lighting | S2: Large User | T2: GS < 50 kW | U2: Intermediate | V2: USL | W2: Stand By | X2: TOTAL LDC sales
A3: 2004 | B3: 1 | C3: 1 | D3: 1 | E3: 0.02340064085 | F3: 0.01774295999 | G3: 0.00195545 | H3: 0.0001062049224 | I3: 0.0014380422 | J3: 0.01439127353 | K3: 0.006604956519 | L3: 0.0001044034182 | M3: 0.00189314496 | N3: 0.06763707639 | O3: =E3*1000000 -> 23400.64085 | P3: =F3*1000000 -> 17742.95999 | Q3: 1955.45 | R3: 106.2049224 | S3: 1438.0422 | T3: 14391.27353 | U3: 6604.956519 | V3: 104.4034182 | W3: 1893.14496 | X3: =SUM(O3:W3) -> 67637.07639
A4: 2004 | B4: 1 | C4: 1 | D4: 2 | E4: 0.02192199484 | F4: 0.0176896981 | G4: 0.00195545 | H4: 0.0001062049224 | I4: 0.001440453 | J4: 0.01385899857 | K4: 0.006599049785 | L4: 0.0001044034182 | M4: 0.00184093056 | N4: 0.06551718319 | O4: =E4*1000000 -> 21921.99484 | P4: =F4*1000000 -> 17689.6981 | Q4: =G4*1000000 -> 1955.45 | R4: =H4*1000000 -> 106.2049224 | S4: =I4*1000000 -> 1440.453 | T4: =J4*1000000 -> 13858.99857 | U4: =K4*1000000 -> 6599.049785 | V4: =L4*1000000 -> 104.4034182 | W4: =M4*1000000 -> 1840.93056 | X4: =SUM(O4:W4) -> 65517.18319
A5: 2004 | B5: 1 | C5: 1 | D5: 3 | E5: 0.02051726849 | F5: 0.01715965896 | G5: 0.00195545 | H5: 0.0001062049224 | I5: 0.0014533106 | J5: 0.01381277055 | K5: 0.006621104978 | L5: 0.0001044034182 | M5: 0.00191651712 | N5: 0.06364668904 | O5: 20517.26849 | P5: 17159.65896 | Q5: 1955.45 | R5: 106.2049224 | S5: 1453.3106 | T5: 13812.77055 | U5: 6621.104978 | V5: 104.4034182 | W5: 1916.51712 | X5: 63646.68904
A6: 2004 | B6: 1 | C6: 1 | D6: 4 | E6: 0.02034891947 | F6: 0.01675081067 | G6: 0.00195545 | H6: 0.0001062049224 | I6: 0.001460543 | J6: 0.01361600968 | K6: 0.006589810615 | L6: 0.0001044034182 | M6: 0.00183396864 | N6: 0.06276612041 | O6: 20348.91947 | P6: 16750.81067 | Q6: 1955.45 | R6: 106.2049224 | S6: 1460.543 | T6: 13616.00968 | U6: 6589.810615 | V6: 104.4034182 | W6: 1833.96864 | X6: 62766.12041
A7: 2004 | B7: 1 | C7: 1 | D7: 5 | E7: 0.02002579974 | F7: 0.01694637991 | G7: 0.00195545 | H7: 0.0001062049224 | I7: 0.0014573286 | J7: 0.01416251208 | K7: 0.006636887412 | L7: 0.0001044034182 | M7: 0.00167235264 | N7: 0.06306731872 | O7: 20025.79974 | P7: 16946.37991 | Q7: 1955.45 | R7: 106.2049224 | S7: 1457.3286 | T7: 14162.51208 | U7: 6636.887412 | V7: 104.4034182 | W7: 1672.35264 | X7: 63067.31872
A8: 2004 | B8: 1 | C8: 1 | D8: 6 | E8: 0.02104679581 | F8: 0.01762983945 | G8: 0.00195545 | H8: 0.0001062049224 | I8: 0.0014577304 | J8: 0.01396247246 | K8: 0.006675366836 | L8: 0.0001044034182 | M8: 0.00174246912 | N8: 0.06468073241 | O8: 21046.79581 | P8: 17629.83945 | Q8: 1955.45 | R8: 106.2049224 | S8: 1457.7304 | T8: 13962.47246 | U8: 6675.366836 | V8: 104.4034182 | W8: 1742.46912 | X8: 64680.73241
A9: 2004 | B9: 1 | C9: 1 | D9: 7 | E9: 0.02381771469 | F9: 0.01868845463 | G9: 0.00195545 | H9: 0.0001062049224 | I9: 0.001472597 | J9: 0.01518348769 | K9: 0.006789066088 | L9: 0.0001044034182 | M9: 0.00169522752 | N9: 0.06981260596 | O9: 23817.71469 | P9: 18688.45463 | Q9: 1955.45 | R9: 106.2049224 | S9: 1472.597 | T9: 15183.48769 | U9: 6789.066088 | V9: 104.4034182 | W9: 1695.22752 | X9: 69812.60596
A10: 2004 | B10: 1 | C10: 1 | D10: 8 | E10: 0.02724930827 | F10: 0.02006015749 | G10: 0.00195545 | H10: 0.0001062049224 | I10: 0.001462552 | J10: 0.01664738509 | K10: 0.006874350125 | L10: 0.0001044034182 | M10: 0.00176236032 | N10: 0.07622217163 | O10: 27249.30827 | P10: 20060.15749 | Q10: 1955.45 | R10: 106.2049224 | S10: 1462.552 | T10: 16647.38509 | U10: 6874.350125 | V10: 104.4034182 | W10: 1762.36032 | X10: 76222.17163
A11: 2004 | B11: 1 | C11: 1 | D11: 9 | E11: 0.03088922162 | F11: 0.02089353458 | G11: 0.0014666 | H11: 7.965437071e-05 | I11: 0.0014063 | J11: 0.016040373 | K11: 0.006781045256 | L11: 0.0001012594283 | M11: 0.00159726336 | N11: 0.07925525163 | O11: 30889.22162 | P11: 20893.53458 | Q11: 1466.6 | R11: 79.65437071 | S11: 1406.3 | T11: 16040.373 | U11: 6781.045256 | V11: 101.2594283 | W11: 1597.26336 | X11: 79255.25163
A12: 2004 | B12: 1 | C12: 1 | D12: 10 | E12: 0.03514961651 | F12: 0.02124221645 | G12: 0 | H12: 0 | I12: 0.0013886208 | J12: 0.01710680445 | K12: 0.006774735638 | L12: 9.18271371e-05 | M12: 0.00161267904 | N12: 0.08336650003 | O12: 35149.61651 | P12: 21242.21645 | Q12: 0 | R12: 0 | S12: 1388.6208 | T12: 17106.80445 | U12: 6774.735638 | V12: 91.8271371 | W12: 1612.67904 | X12: 83366.50003
A13: 2004 | B13: 1 | C13: 1 | D13: 11 | E13: 0.03560201742 | F13: 0.02201472098 | G13: 0 | H13: 0 | I13: 0.001376165 | J13: 0.01912123606 | K13: 0.006838627286 | L13: 9.18271371e-05 | M13: 0.00155449728 | N13: 0.08659909117 | O13: 35602.01742 | P13: 22014.72098 | Q13: 0 | R13: 0 | S13: 1376.165 | T13: 19121.23606 | U13: 6838.627286 | V13: 91.8271371 | W13: 1554.49728 | X13: 86599.09117
A14: 2004 | B14: 1 | C14: 1 | D14: 12 | E14: 0.03677242453 | F14: 0.02312887461 | G14: 0 | H14: 0 | I14: 0.0013669236 | J14: 0.01988633548 | K14: 0.006819228266 | L14: 9.18271371e-05 | M14: 0.0016509696 | N14: 0.08971658322 | O14: 36772.42453 | P14: 23128.87461 | Q14: 0 | R14: 0 | S14: 1366.9236 | T14: 19886.33548 | U14: 6819.228266 | V14: 91.8271371 | W14: 1650.9696 | X14: 89716.58322
A15: 2004 | B15: 1 | C15: 1 | D15: 13 | E15: 0.03696458636 | F15: 0.02279323349 | G15: 0 | H15: 0 | I15: 0.0013572804 | J15: 0.01875232064 | K15: 0.006867552589 | L15: 9.18271371e-05 | M15: 0.00170417856 | N15: 0.08853097917 | O15: 36964.58636 | P15: 22793.23349 | Q15: 0 | R15: 0 | S15: 1357.2804 | T15: 18752.32064 | U15: 6867.552589 | V15: 91.8271371 | W15: 1704.17856 | X15: 88530.97917
A16: 2004 | B16: 1 | C16: 1 | D16: 14 | E16: 0.03498865402 | F16: 0.02267744264 | G16: 0 | H16: 0 | I16: 0.0013669236 | J16: 0.01827100306 | K16: 0.006784774299 | L16: 9.18271371e-05 | M16: 0.00174893376 | N16: 0.08592955851 | O16: 34988.65402 | P16: 22677.44264 | Q16: 0 | R16: 0 | S16: 1366.9236 | T16: 18271.00306 | U16: 6784.774299 | V16: 91.8271371 | W16: 1748.93376 | X16: 85929.55851
A17: 2004 | B17: 1 | C17: 1 | D17: 15 | E17: 0.03449124132 | F17: 0.02228191425 | G17: 0 | H17: 0 | I17: 0.0013524588 | J17: 0.01882859241 | K17: 0.006709460505 | L17: 9.18271371e-05 | M17: 0.00168677376 | N17: 0.08544226819 | O17: 34491.24132 | P17: 22281.91425 | Q17: 0 | R17: 0 | S17: 1352.4588 | T17: 18828.59241 | U17: 6709.460505 | V17: 91.8271371 | W17: 1686.77376 | X17: 85442.26819
A18: 2004 | B18: 1 | C18: 1 | D18: 16 | E18: 0.03559410378 | F18: 0.02191173385 | G18: 0 | H18: 0 | I18: 0.0013496462 | J18: 0.01675474729 | K18: 0.00671678569 | L18: 9.18271371e-05 | M18: 0.00173998272 | N18: 0.08415882667 | O18: 35594.10378 | P18: 21911.73385 | Q18: 0 | R18: 0 | S18: 1349.6462 | T18: 16754.74729 | U18: 6716.78569 | V18: 91.8271371 | W18: 1739.98272 | X18: 84158.82667
A19: 2004 | B19: 1 | C19: 1 | D19: 17 | E19: 0.03863318287 | F19: 0.02172421574 | G19: 0 | H19: 0 | I19: 0.0013568786 | J19: 0.01739584957 | K19: 0.006686231397 | L19: 9.18271371e-05 | M19: 0.00174495552 | N19: 0.08763314083 | O19: 38633.18287 | P19: 21724.21574 | Q19: 0 | R19: 0 | S19: 1356.8786 | T19: 17395.84957 | U19: 6686.231397 | V19: 91.8271371 | W19: 1744.95552 | X19: 87633.14083
A20: 2004 | B20: 1 | C20: 1 | D20: 18 | E20: 0.04500427796 | F20: 0.02181638214 | G20: 0 | H20: 0 | I20: 0.0014167468 | J20: 0.01817261103 | K20: 0.006721749936 | L20: 9.18271371e-05 | M20: 0.00182054208 | N20: 0.09504413709 | O20: 45004.27796 | P20: 21816.38214 | Q20: 0 | R20: 0 | S20: 1416.7468 | T20: 18172.61103 | U20: 6721.749936 | V20: 91.8271371 | W20: 1820.54208 | X20: 95044.13709
A21: 2004 | B21: 1 | C21: 1 | D21: 19 | E21: 0.04652245109 | F21: 0.0213718859 | G21: 0.00048887 | H21: 2.655163794e-05 | I21: 0.0014288008 | J21: 0.01567262022 | K21: 0.006708026044 | L21: 9.497125562e-05 | M21: 0.00184938432 | N21: 0.09416356127 | O21: 46522.45109 | P21: 21371.8859 | Q21: 488.87 | R21: 26.55163794 | S21: 1428.8008 | T21: 15672.62022 | U21: 6708.026044 | V21: 94.97125562 | W21: 1849.38432 | X21: 94163.56127
A22: 2004 | B22: 1 | C22: 1 | D22: 20 | E22: 0.04255647187 | F22: 0.02093480973 | G22: 0.00195545 | H22: 0.0001062049224 | I22: 0.0014292026 | J22: 0.01571985135 | K22: 0.007700960573 | L22: 0.0001044034182 | M22: 0.0018797184 | N22: 0.09238707286 | O22: 42556.47187 | P22: 20934.80973 | Q22: 1955.45 | R22: 106.2049224 | S22: 1429.2026 | T22: 15719.85135 | U22: 7700.960573 | V22: 104.4034182 | W22: 1879.7184 | X22: 92387.07286
A23: 2004 | B23: 1 | C23: 1 | D23: 21 | E23: 0.0404421084 | F23: 0.02048971392 | G23: 0.00195545 | H23: 0.0001062049224 | I23: 0.001418354 | J23: 0.01681646518 | K23: 0.007929590957 | L23: 0.0001044034182 | M23: 0.00190657152 | N23: 0.09116886231 | O23: 40442.1084 | P23: 20489.71392 | Q23: 1955.45 | R23: 106.2049224 | S23: 1418.354 | T23: 16816.46518 | U23: 7929.590957 | V23: 104.4034182 | W23: 1906.57152 | X23: 91168.86231
A24: 2004 | B24: 1 | C24: 1 | D24: 22 | E24: 0.03906429328 | F24: 0.01958001656 | G24: 0.00195545 | H24: 0.0001062049224 | I24: 0.001420363 | J24: 0.01508489712 | K24: 0.007854157036 | L24: 0.0001044034182 | M24: 0.00189165312 | N24: 0.08706143845 | O24: 39064.29328 | P24: 19580.01656 | Q24: 1955.45 | R24: 106.2049224 | S24: 1420.363 | T24: 15084.89712 | U24: 7854.157036 | V24: 104.4034182 | W24: 1891.65312 | X24: 87061.43845
A25: 2004 | B25: 1 | C25: 1 | D25: 23 | E25: 0.03456446663 | F25: 0.01975561669 | G25: 0.00195545 | H25: 0.0001062049224 | I25: 0.0014235774 | J25: 0.01324247713 | K25: 0.007895312464 | L25: 0.0001044034182 | M25: 0.00194585664 | N25: 0.08099336529 | O25: 34564.46663 | P25: 19755.61669 | Q25: 1955.45 | R25: 106.2049224 | S25: 1423.5774 | T25: 13242.47713 | U25: 7895.312464 | V25: 104.4034182 | W25: 1945.85664 | X25: 80993.36529
A26: 2004 | B26: 1 | C26: 1 | D26: 24 | E26: 0.02612688385 | F26: 0.02000523662 | G26: 0.00195545 | H26: 0.0001062049224 | I26: 0.0014087108 | J26: 0.01376430286 | K26: 0.008227775947 | L26: 0.0001044034182 | M26: 0.00195629952 | N26: 0.07365526794 | O26: 26126.88385 | P26: 20005.23662 | Q26: 1955.45 | R26: 106.2049224 | S26: 1408.7108 | T26: 13764.30286 | U26: 8227.775947 | V26: 104.4034182 | W26: 1956.29952 | X26: 73655.26794
A27: 2004 | B27: 1 | C27: 2 | D27: 1 | E27: 0.02103157791 | F27: 0.02079838837 | G27: 0.00195545 | H27: 0.0001062049224 | I27: 0.001418354 | J27: 0.0114864009 | K27: 0.008298086578 | L27: 0.0001044034182 | M27: 0.00188071296 | N27: 0.06707957906 | O27: 21031.57791 | P27: 20798.38837 | Q27: 1955.45 | R27: 106.2049224 | S27: 1418.354 | T27: 11486.4009 | U27: 8298.086578 | V27: 104.4034182 | W27: 1880.71296 | X27: 67079.57906
A28: 2004 | B28: 1 | C28: 2 | D28: 2 | E28: 0.01892776867 | F28: 0.02078182978 | G28: 0.00195545 | H28: 0.0001062049224 | I28: 0.001410318 | J28: 0.01155786006 | K28: 0.008353064019 | L28: 0.0001044034182 | M28: 0.0017802624 | N28: 0.06497716127 | O28: 18927.76867 | P28: 20781.82978 | Q28: 1955.45 | R28: 106.2049224 | S28: 1410.318 | T28: 11557.86006 | U28: 8353.064019 | V28: 104.4034182 | W28: 1780.2624 | X28: 64977.16127
A29: 2004 | B29: 1 | C29: 2 | D29: 3 | E29: 0.01785230451 | F29: 0.01988508718 | G29: 0.00195545 | H29: 0.0001062049224 | I29: 0.0014058982 | J29: 0.01162707825 | K29: 0.008357160594 | L29: 0.0001044034182 | M29: 0.00182849856 | N29: 0.06312208564 | O29: 17852.30451 | P29: 19885.08718 | Q29: 1955.45 | R29: 106.2049224 | S29: 1405.8982 | T29: 11627.07825 | U29: 8357.160594 | V29: 104.4034182 | W29: 1828.49856 | X29: 63122.08564
A30: 2004 | B30: 1 | C30: 2 | D30: 4 | E30: 0.01772437123 | F30: 0.01932666974 | G30: 0.00195545 | H30: 0.0001062049224 | I30: 0.0015019284 | J30: 0.01158836123 | K30: 0.008317765444 | L30: 0.0001044034182 | M30: 0.0016236192 | N30: 0.06224877358 | O30: 17724.37123 | P30: 19326.66974 | Q30: 1955.45 | R30: 106.2049224 | S30: 1501.9284 | T30: 11588.36123 | U30: 8317.765444 | V30: 104.4034182 | W30: 1623.6192 | X30: 62248.77358
A31: 2004 | B31: 1 | C31: 2 | D31: 5 | E31: 0.01708466759 | F31: 0.01936897651 | G31: 0.00195545 | H31: 0.0001062049224 | I31: 0.0016827384 | J31: 0.01174049784 | K31: 0.008697926938 | L31: 0.0001044034182 | M31: 0.00180661824 | N31: 0.06254748387 | O31: 17084.66759 | P31: 19368.97651 | Q31: 1955.45 | R31: 106.2049224 | S31: 1682.7384 | T31: 11740.49784 | U31: 8697.926938 | V31: 104.4034182 | W31: 1806.61824 | X31: 62547.48387
A32: 2004 | B32: 1 | C32: 2 | D32: 6 | E32: 0.01779273824 | F32: 0.02022454476 | G32: 0.00195545 | H32: 0.0001062049224 | I32: 0.0017675182 | J32: 0.01107650503 | K32: 0.009340970879 | L32: 0.0001044034182 | M32: 0.00177926784 | N32: 0.06414760328 | O32: 17792.73824 | P32: 20224.54476 | Q32: 1955.45 | R32: 106.2049224 | S32: 1767.5182 | T32: 11076.50503 | U32: 9340.970879 | V32: 104.4034182 | W32: 1779.26784 | X32: 64147.60328
A33: 2004 | B33: 1 | C33: 2 | D33: 7 | E33: 0.02050531012 | F33: 0.02180469662 | G33: 0.00195545 | H33: 0.0001062049224 | I33: 0.0020616358 | J33: 0.01080976737 | K33: 0.01013033024 | L33: 0.0001044034182 | M33: 0.00175937664 | N33: 0.06923717514 | O33: 20505.31012 | P33: 21804.69662 | Q33: 1955.45 | R33: 106.2049224 | S33: 2061.6358 | T33: 10809.76737 | U33: 10130.33024 | V33: 104.4034182 | W33: 1759.37664 | X33: 69237.17514
A34: 2004 | B34: 1 | C34: 2 | D34: 8 | E34: 0.02275025138 | F34: 0.02435782488 | G34: 0.00195545 | H34: 0.0001062049224 | I34: 0.0022392314 | J34: 0.01053906972 | K34: 0.01136885389 | L34: 0.0001044034182 | M34: 0.00217261632 | N34: 0.07559390593 | O34: 22750.25138 | P34: 24357.82488 | Q34: 1955.45 | R34: 106.2049224 | S34: 2239.2314 | T34: 10539.06972 | U34: 11368.85389 | V34: 104.4034182 | W34: 2172.61632 | X34: 75593.90593
A35: 2004 | B35: 1 | C35: 2 | D35: 9 | E35: 0.02486614538 | F35: 0.02603878209 | G35: 0.0014666 | H35: 7.965437071e-05 | I35: 0.0022267756 | J35: 0.008989394118 | K35: 0.01152895778 | L35: 0.0001012594283 | M35: 0.0033044256 | N35: 0.07860199437 | O35: 24866.14538 | P35: 26038.78209 | Q35: 1466.6 | R35: 79.65437071 | S35: 2226.7756 | T35: 8989.394118 | U35: 11528.95778 | V35: 101.2594283 | W35: 3304.4256 | X35: 78601.99437
A36: 2004 | B36: 1 | C36: 2 | D36: 10 | E36: 0.027725378 | F36: 0.02701691873 | G36: 0 | H36: 0 | I36: 0.0022135162 | J36: 0.01074648909 | K36: 0.01149228573 | L36: 9.18271371e-05 | M36: 0.00339294144 | N36: 0.08267935634 | O36: 27725.378 | P36: 27016.91873 | Q36: 0 | R36: 0 | S36: 2213.5162 | T36: 10746.48909 | U36: 11492.28573 | V36: 91.8271371 | W36: 3392.94144 | X36: 82679.35634
A37: 2004 | B37: 1 | C37: 2 | D37: 11 | E37: 0.02915379657 | F37: 0.02740347159 | G37: 0 | H37: 0 | I37: 0.0029383634 | J37: 0.01118221698 | K37: 0.01153421791 | L37: 9.18271371e-05 | M37: 0.00358141056 | N37: 0.08588530414 | O37: 29153.79657 | P37: 27403.47159 | Q37: 0 | R37: 0 | S37: 2938.3634 | T37: 11182.21698 | U37: 11534.21791 | V37: 91.8271371 | W37: 3581.41056 | X37: 85885.30414
A38: 2004 | B38: 1 | C38: 2 | D38: 12 | E38: 0.03046492061 | F38: 0.02824745835 | G38: 0 | H38: 0 | I38: 0.0029327382 | J38: 0.01180778661 | K38: 0.0116938167 | L38: 9.18271371e-05 | M38: 0.00373855104 | N38: 0.08897709865 | O38: 30464.92061 | P38: 28247.45835 | Q38: 0 | R38: 0 | S38: 2932.7382 | T38: 11807.78661 | U38: 11693.8167 | V38: 91.8271371 | W38: 3738.55104 | X38: 88977.09865
A39: 2004 | B39: 1 | C39: 2 | D39: 13 | E39: 0.02931467811 | F39: 0.02807975565 | G39: 0 | H39: 0 | I39: 0.0028334936 | J39: 0.01165538922 | K39: 0.0121019925 | L39: 9.18271371e-05 | M39: 0.00372412992 | N39: 0.08780126613 | O39: 29314.67811 | P39: 28079.75565 | Q39: 0 | R39: 0 | S39: 2833.4936 | T39: 11655.38922 | U39: 12101.9925 | V39: 91.8271371 | W39: 3724.12992 | X39: 87801.26613
A40: 2004 | B40: 1 | C40: 2 | D40: 14 | E40: 0.02918908573 | F40: 0.02722441521 | G40: 0 | H40: 0 | I40: 0.0027900992 | J40: 0.009888634999 | K40: 0.01226137802 | L40: 9.18271371e-05 | M40: 0.00377584704 | N40: 0.08522128733 | O40: 29189.08573 | P40: 27224.41521 | Q40: 0 | R40: 0 | S40: 2790.0992 | T40: 9888.634999 | U40: 12261.37802 | V40: 91.8271371 | W40: 3775.84704 | X40: 85221.28733
A41: 2004 | B41: 1 | C41: 2 | D41: 15 | E41: 0.02833231618 | F41: 0.02643837043 | G41: 0 | H41: 0 | I41: 0.0029528282 | J41: 0.01093123602 | K41: 0.01227227777 | L41: 9.18271371e-05 | M41: 0.00371915712 | N41: 0.08473801286 | O41: 28332.31618 | P41: 26438.37043 | Q41: 0 | R41: 0 | S41: 2952.8282 | T41: 10931.23602 | U41: 12272.27777 | V41: 91.8271371 | W41: 3719.15712 | X41: 84738.01286
A42: 2004 | B42: 1 | C42: 2 | D42: 16 | E42: 0.02836482592 | F42: 0.02598525174 | G42: 0 | H42: 0 | I42: 0.0031207806 | J42: 0.009870852514 | K42: 0.01241837059 | L42: 9.18271371e-05 | M42: 0.00361323648 | N42: 0.08346514497 | O42: 28364.82592 | P42: 25985.25174 | Q42: 0 | R42: 0 | S42: 3120.7806 | T42: 9870.852514 | U42: 12418.37059 | V42: 91.8271371 | W42: 3613.23648 | X42: 83465.14497
A43: 2004 | B43: 1 | C43: 2 | D43: 17 | E43: 0.03248724493 | F43: 0.02532923128 | G43: 0 | H43: 0 | I43: 0.0033984244 | J43: 0.009791981254 | K43: 0.01216407388 | L43: 9.18271371e-05 | M43: 0.00364804608 | N43: 0.08691082897 | O43: 32487.24493 | P43: 25329.23128 | Q43: 0 | R43: 0 | S43: 3398.4244 | T43: 9791.981254 | U43: 12164.07388 | V43: 91.8271371 | W43: 3648.04608 | X43: 86910.82897
A44: 2004 | B44: 1 | C44: 2 | D44: 18 | E44: 0.03843016873 | F44: 0.02520408672 | G44: 0 | H44: 0 | I44: 0.0034723556 | J44: 0.01139750788 | K44: 0.01195458731 | L44: 9.18271371e-05 | M44: 0.00371020608 | N44: 0.09426073946 | O44: 38430.16873 | P44: 25204.08672 | Q44: 0 | R44: 0 | S44: 3472.3556 | T44: 11397.50788 | U44: 11954.58731 | V44: 91.8271371 | W44: 3710.20608 | X44: 94260.73946
A45: 2004 | B45: 1 | C45: 2 | D45: 19 | E45: 0.04074638326 | F45: 0.02436174459 | G45: 0.00048887 | H45: 2.655163794e-05 | I45: 0.0032517674 | J45: 0.009089650188 | K45: 0.0116794358 | L45: 9.497125562e-05 | M45: 0.00364804608 | N45: 0.09338742021 | O45: 40746.38326 | P45: 24361.74459 | Q45: 488.87 | R45: 26.55163794 | S45: 3251.7674 | T45: 9089.650188 | U45: 11679.4358 | V45: 94.97125562 | W45: 3648.04608 | X45: 93387.42021
A46: 2004 | B46: 1 | C46: 2 | D46: 20 | E46: 0.03799959733 | F46: 0.02417484129 | G46: 0.00195545 | H46: 0.0001062049224 | I46: 0.0032473476 | J46: 0.009293171351 | K46: 0.01125912464 | L46: 0.0001044034182 | M46: 0.00348543552 | N46: 0.09162557607 | O46: 37999.59733 | P46: 24174.84129 | Q46: 1955.45 | R46: 106.2049224 | S46: 3247.3476 | T46: 9293.171351 | U46: 11259.12464 | V46: 104.4034182 | W46: 3485.43552 | X46: 91625.57607
A47: 2004 | B47: 1 | C47: 2 | D47: 21 | E47: 0.03570332804 | F47: 0.02403221263 | G47: 0.00195545 | H47: 0.0001062049224 | I47: 0.003264625 | J47: 0.01143345474 | K47: 0.01115429518 | L47: 0.0001044034182 | M47: 0.00266343168 | N47: 0.09041740562 | O47: 35703.32804 | P47: 24032.21263 | Q47: 1955.45 | R47: 106.2049224 | S47: 3264.625 | T47: 11433.45474 | U47: 11154.29518 | V47: 104.4034182 | W47: 2663.43168 | X47: 90417.40562
A48: 2004 | B48: 1 | C48: 2 | D48: 22 | E48: 0.03465247797 | F48: 0.02257564247 | G48: 0.00195545 | H48: 0.0001062049224 | I48: 0.0032895366 | J48: 0.01045819524 | K48: 0.01107158221 | L48: 0.0001044034182 | M48: 0.00213034752 | N48: 0.08634384035 | O48: 34652.47797 | P48: 22575.64247 | Q48: 1955.45 | R48: 106.2049224 | S48: 3289.5366 | T48: 10458.19524 | U48: 11071.58221 | V48: 104.4034182 | W48: 2130.34752 | X48: 86343.84035
A49: 2004 | B49: 1 | C49: 2 | D49: 23 | E49: 0.03089334546 | F49: 0.0217082864 | G49: 0.00195545 | H49: 0.0001062049224 | I49: 0.0031959172 | J49: 0.009408617109 | K49: 0.01071231986 | L49: 0.0001044034182 | M49: 0.00224124096 | N49: 0.08032578532 | O49: 30893.34546 | P49: 21708.2864 | Q49: 1955.45 | R49: 106.2049224 | S49: 3195.9172 | T49: 9408.617109 | U49: 10712.31986 | V49: 104.4034182 | W49: 2241.24096 | X49: 80325.78532
A50: 2004 | B50: 1 | C50: 2 | D50: 24 | E50: 0.02796534045 | F50: 0.01888056695 | G50: 0.00195545 | H50: 0.0001062049224 | I50: 0.0034024424 | J50: 0.008219610925 | K50: 0.01010428639 | L50: 0.0001044034182 | M50: 0.0023098656 | N50: 0.07304817105 | O50: 27965.34045 | P50: 18880.56695 | Q50: 1955.45 | R50: 106.2049224 | S50: 3402.4424 | T50: 8219.610925 | U50: 10104.28639 | V50: 104.4034182 | W50: 2309.8656 | X50: 73048.17105
A51: 2004 | B51: 1 | C51: 3 | D51: 1 | E51: 0.02210166296 | F51: 0.01922156255 | G51: 0.00195545 | H51: 0.0001062049224 | I51: 0.003594101 | J51: 0.01310150744 | K51: 0.01021621646 | L51: 0.0001044034182 | M51: 0.0040975872 | N51: 0.07449869595 | O51: 22101.66296 | P51: 19221.56255 | Q51: 1955.45 | R51: 106.2049224 | S51: 3594.101 | T51: 13101.50744 | U51: 10216.21646 | V51: 104.4034182 | W51: 4097.5872 | X51: 74498.69595
A52: 2004 | B52: 1 | C52: 3 | D52: 2 | E52: 0.020370185 | F52: 0.01814149065 | G52: 0.00195545 | H52: 0.0001062049224 | I52: 0.0038142874 | J52: 0.01222076812 | K52: 0.01025562542 | L52: 0.0001044034182 | M52: 0.00465603264 | N52: 0.07162444757 | O52: 20370.185 | P52: 18141.49065 | Q52: 1955.45 | R52: 106.2049224 | S52: 3814.2874 | T52: 12220.76812 | U52: 10255.62542 | V52: 104.4034182 | W52: 4656.03264 | X52: 71624.44757
A53: 2004 | B53: 1 | C53: 3 | D53: 3 | E53: 0.01910468114 | F53: 0.01754885494 | G53: 0.00195545 | H53: 0.0001062049224 | I53: 0.0039750074 | J53: 0.01220790889 | K53: 0.01016271851 | L53: 0.0001044034182 | M53: 0.00456204672 | N53: 0.06972727594 | O53: 19104.68114 | P53: 17548.85494 | Q53: 1955.45 | R53: 106.2049224 | S53: 3975.0074 | T53: 12207.90889 | U53: 10162.71851 | V53: 104.4034182 | W53: 4562.04672 | X53: 69727.27594
A54: 2004 | B54: 1 | C54: 3 | D54: 4 | E54: 0.0182247763 | F54: 0.01735071658 | G54: 0.00195545 | H54: 0.0001062049224 | I54: 0.0044386846 | J54: 0.01200927843 | K54: 0.009957812348 | L54: 0.0001044034182 | M54: 0.00456353856 | N54: 0.06871086516 | O54: 18224.7763 | P54: 17350.71658 | Q54: 1955.45 | R54: 106.2049224 | S54: 4438.6846 | T54: 12009.27843 | U54: 9957.812348 | V54: 104.4034182 | W54: 4563.53856 | X54: 68710.86516
A55: 2004 | B55: 1 | C55: 3 | D55: 5 | E55: 0.01861915615 | F55: 0.0171687271 | G55: 0.00195545 | H55: 0.0001062049224 | I55: 0.005285679 | J55: 0.01237159018 | K55: 0.009919745724 | L55: 0.0001044034182 | M55: 0.00354361728 | N55: 0.06907457378 | O55: 18619.15615 | P55: 17168.7271 | Q55: 1955.45 | R55: 106.2049224 | S55: 5285.679 | T55: 12371.59018 | U55: 9919.745724 | V55: 104.4034182 | W55: 3543.61728 | X55: 69074.57378
A56: 2004 | B56: 1 | C56: 3 | D56: 6 | E56: 0.01963594881 | F56: 0.01731006686 | G56: 0.00195545 | H56: 0.0001062049224 | I56: 0.005753776 | J56: 0.01267481373 | K56: 0.01017439465 | L56: 0.0001044034182 | M56: 0.00274946112 | N56: 0.0704645195 | O56: 19635.94881 | P56: 17310.06686 | Q56: 1955.45 | R56: 106.2049224 | S56: 5753.776 | T56: 12674.81373 | U56: 10174.39465 | V56: 104.4034182 | W56: 2749.46112 | X56: 70464.5195
A57: 2004 | B57: 1 | C57: 3 | D57: 7 | E57: 0.02081767383 | F57: 0.01838150703 | G57: 0.00195545 | H57: 0.0001062049224 | I57: 0.0060515098 | J57: 0.01270679755 | K57: 0.01025425472 | L57: 0.0001044034182 | M57: 0.00263657856 | N57: 0.07301437982 | O57: 20817.67383 | P57: 18381.50703 | Q57: 1955.45 | R57: 106.2049224 | S57: 6051.5098 | T57: 12706.79755 | U57: 10254.25472 | V57: 104.4034182 | W57: 2636.57856 | X57: 73014.37982
A58: 2004 | B58: 1 | C58: 3 | D58: 8 | E58: 0.02457123532 | F58: 0.02071762927 | G58: 0.00195545 | H58: 0.0001062049224 | I58: 0.0054721142 | J58: 0.01254135513 | K58: 0.01074590246 | L58: 0.0001044034182 | M58: 0.00246800064 | N58: 0.07868229536 | O58: 24571.23532 | P58: 20717.62927 | Q58: 1955.45 | R58: 106.2049224 | S58: 5472.1142 | T58: 12541.35513 | U58: 10745.90246 | V58: 104.4034182 | W58: 2468.00064 | X58: 78682.29536
A59: 2004 | B59: 1 | C59: 3 | D59: 9 | E59: 0.02650613256 | F59: 0.02134124695 | G59: 0.0014666 | H59: 7.965437071e-05 | I59: 0.0048143676 | J59: 0.0125806042 | K59: 0.01091004393 | L59: 0.0001012594283 | M59: 0.00229395264 | N59: 0.08009386168 | O59: 26506.13256 | P59: 21341.24695 | Q59: 1466.6 | R59: 79.65437071 | S59: 4814.3676 | T59: 12580.6042 | U59: 10910.04393 | V59: 101.2594283 | W59: 2293.95264 | X59: 80093.86168
A60: 2004 | B60: 1 | C60: 3 | D60: 10 | E60: 0.02991038537 | F60: 0.02307608336 | G60: 0 | H60: 0 | I60: 0.0038219216 | J60: 0.01483137031 | K60: 0.0110494562 | L60: 9.18271371e-05 | M60: 0.0026877984 | N60: 0.08546884237 | O60: 29910.38537 | P60: 23076.08336 | Q60: 0 | R60: 0 | S60: 3821.9216 | T60: 14831.37031 | U60: 11049.4562 | V60: 91.8271371 | W60: 2687.7984 | X60: 85468.84237
A61: 2004 | B61: 1 | C61: 3 | D61: 11 | E61: 0.03160022129 | F61: 0.02346799117 | G61: 0 | H61: 0 | I61: 0.003801028 | J61: 0.0157856899 | K61: 0.01110060371 | L61: 9.18271371e-05 | M61: 0.00295185408 | N61: 0.08879921529 | O61: 31600.22129 | P61: 23467.99117 | Q61: 0 | R61: 0 | S61: 3801.028 | T61: 15785.6899 | U61: 11100.60371 | V61: 91.8271371 | W61: 2951.85408 | X61: 88799.21529
A62: 2004 | B62: 1 | C62: 3 | D62: 12 | E62: 0.03344596564 | F62: 0.02235240995 | G62: 0 | H62: 0 | I62: 0.0040405008 | J62: 0.01533344063 | K62: 0.01120080458 | L62: 9.18271371e-05 | M62: 0.00326613504 | N62: 0.08973108378 | O62: 33445.96564 | P62: 22352.40995 | Q62: 0 | R62: 0 | S62: 4040.5008 | T62: 15333.44063 | U62: 11200.80458 | V62: 91.8271371 | W62: 3266.13504 | X62: 89731.08378
A63: 2004 | B63: 1 | C63: 3 | D63: 13 | E63: 0.0339545245 | F63: 0.02109516929 | G63: 0 | H63: 0 | I63: 0.004013982 | J63: 0.01361681248 | K63: 0.0109979299 | L63: 9.18271371e-05 | M63: 0.00451977792 | N63: 0.08829002322 | O63: 33954.5245 | P63: 21095.16929 | Q63: 0 | R63: 0 | S63: 4013.982 | T63: 13616.81248 | U63: 10997.9299 | V63: 91.8271371 | W63: 4519.77792 | X63: 88290.02322
A64: 2004 | B64: 1 | C64: 3 | D64: 14 | E64: 0.03164586916 | F64: 0.02152954389 | G64: 0 | H64: 0 | I64: 0.004013982 | J64: 0.01423052499 | K64: 0.01122704098 | L64: 9.18271371e-05 | M64: 0.00458790528 | N64: 0.08732669344 | O64: 31645.86916 | P64: 21529.54389 | Q64: 0 | R64: 0 | S64: 4013.982 | T64: 14230.52499 | U64: 11227.04098 | V64: 91.8271371 | W64: 4587.90528 | X64: 87326.69344
A65: 2004 | B65: 1 | C65: 3 | D65: 15 | E65: 0.02997933888 | F65: 0.02120606547 | G65: 0 | H65: 0 | I65: 0.0040208126 | J65: 0.01402906109 | K65: 0.01107421951 | L65: 9.18271371e-05 | M65: 0.00445413696 | N65: 0.08485546165 | O65: 29979.33888 | P65: 21206.06547 | Q65: 0 | R65: 0 | S65: 4020.8126 | T65: 14029.06109 | U65: 11074.21951 | V65: 91.8271371 | W65: 4454.13696 | X65: 84855.46165
A66: 2004 | B66: 1 | C66: 3 | D66: 16 | E66: 0.0307947647 | F66: 0.02018250614 | G66: 0 | H66: 0 | I66: 0.0037439724 | J66: 0.01379742156 | K66: 0.0107309506 | L66: 9.18271371e-05 | M66: 0.00422041536 | N66: 0.08356185789 | O66: 30794.7647 | P66: 20182.50614 | Q66: 0 | R66: 0 | S66: 3743.9724 | T66: 13797.42156 | U66: 10730.9506 | V66: 91.8271371 | W66: 4220.41536 | X66: 83561.85789
A67: 2004 | B67: 1 | C67: 3 | D67: 17 | E67: 0.03470961875 | F67: 0.02029511075 | G67: 0 | H67: 0 | I67: 0.0039609444 | J67: 0.01308211257 | K67: 0.0106917876 | L67: 9.18271371e-05 | M67: 0.00397824 | N67: 0.08680964121 | O67: 34709.61875 | P67: 20295.11075 | Q67: 0 | R67: 0 | S67: 3960.9444 | T67: 13082.11257 | U67: 10691.7876 | V67: 91.8271371 | W67: 3978.24 | X67: 86809.64121
A68: 2004 | B68: 1 | C68: 3 | D68: 18 | E68: 0.04026853295 | F68: 0.02031109883 | G68: 0 | H68: 0 | I68: 0.0040151874 | J68: 0.01433616604 | K68: 0.01061695869 | L68: 9.18271371e-05 | M68: 0.00391906368 | N68: 0.09355883473 | O68: =E68*1000000 -> 40268.53295 | P68: =F68*1000000 -> 20311.09883 | Q68: =G68*1000000 -> 0 | R68: =H68*1000000 -> 0 | S68: =I68*1000000 -> 4015.1874 | T68: =J68*1000000 -> 14336.16604 | U68: =K68*1000000 -> 10616.95869 | V68: =L68*1000000 -> 91.8271371 | W68: =M68*1000000 -> 3919.06368 | X68: =SUM(O68:W68) -> 93558.83473
A69: 2004 | B69: 1 | C69: 3 | D69: 19 | E69: 0.04190416252 | F69: 0.02036407459 | G69: 0.00048887 | H69: 2.655163794e-05 | I69: 0.0037636606 | J69: 0.01375081374 | K69: 0.01000683106 | L69: 9.497125562e-05 | M69: 0.00389221056 | N69: 0.09429214596 | O69: 41904.16252 | P69: 20364.07459 | Q69: 488.87 | R69: 26.55163794 | S69: 3763.6606 | T69: 13750.81374 | U69: 10006.83106 | V69: 94.97125562 | W69: 3892.21056 | X69: 94292.14596
A70: 2004 | B70: 1 | C70: 3 | D70: 20 | E70: 0.04061684566 | F70: 0.01904913407 | G70: 0.00195545 | H70: 0.0001062049224 | I70: 0.0033582444 | J70: 0.01307214148 | K70: 0.009748144512 | L70: 0.0001044034182 | M70: 0.00382607232 | N70: 0.09183664078 | O70: 40616.84566 | P70: 19049.13407 | Q70: 1955.45 | R70: 106.2049224 | S70: 3358.2444 | T70: 13072.14148 | U70: 9748.144512 | V70: 104.4034182 | W70: 3826.07232 | X70: 91836.64078
A71: 2004 | B71: 1 | C71: 3 | D71: 21 | E71: 0.03769274782 | F71: 0.02003952632 | G71: 0.00195545 | H71: 0.0001062049224 | I71: 0.0033715038 | J71: 0.01403927546 | K71: 0.009730757865 | L71: 0.0001044034182 | M71: 0.0037843008 | N71: 0.09082417041 | O71: 37692.74782 | P71: 20039.52632 | Q71: 1955.45 | R71: 106.2049224 | S71: 3371.5038 | T71: 14039.27546 | U71: 9730.757865 | V71: 104.4034182 | W71: 3784.3008 | X71: 90824.17041
A72: 2004 | B72: 1 | C72: 3 | D72: 22 | E72: 0.03470592045 | F72: 0.01892403172 | G72: 0.00195545 | H72: 0.0001062049224 | I72: 0.0037805362 | J72: 0.01291223323 | K72: 0.009745737738 | L72: 0.0001044034182 | M72: 0.00378479808 | N72: 0.08601931576 | O72: 34705.92045 | P72: 18924.03172 | Q72: 1955.45 | R72: 106.2049224 | S72: 3780.5362 | T72: 12912.23323 | U72: 9745.737738 | V72: 104.4034182 | W72: 3784.79808 | X72: 86019.31576
A73: 2004 | B73: 1 | C73: 3 | D73: 23 | E73: 0.03252141494 | F73: 0.01791161235 | G73: 0.00195545 | H73: 0.0001062049224 | I73: 0.0037339274 | J73: 0.0128194718 | K73: 0.009603220544 | L73: 0.0001044034182 | M73: 0.003829056 | N73: 0.08258476138 | O73: 32521.41494 | P73: 17911.61235 | Q73: 1955.45 | R73: 106.2049224 | S73: 3733.9274 | T73: 12819.4718 | U73: 9603.220544 | V73: 104.4034182 | W73: 3829.056 | X73: 82584.76138
A74: 2004 | B74: 1 | C74: 3 | D74: 24 | E74: 0.02697921178 | F74: 0.01764488884 | G74: 0.00195545 | H74: 0.0001062049224 | I74: 0.0037652678 | J74: 0.01270991819 | K74: 0.009659174639 | L74: 0.0001044034182 | M74: 0.00320397504 | N74: 0.07612849463 | O74: 26979.21178 | P74: 17644.88884 | Q74: 1955.45 | R74: 106.2049224 | S74: 3765.2678 | T74: 12709.91819 | U74: 9659.174639 | V74: 104.4034182 | W74: 3203.97504 | X74: 76128.49463
A75: 2004 | B75: 1 | C75: 4 | D75: 1 | E75: 0.02359497349 | F75: 0.0180376175 | G75: 0.00195545 | H75: 0.0001062049224 | I75: 0.0037974118 | J75: 0.01423654649 | K75: 0.009553501043 | L75: 0.0001044034182 | M75: 0.00252916608 | N75: 0.07391527474 | O75: 23594.97349 | P75: 18037.6175 | Q75: 1955.45 | R75: 106.2049224 | S75: 3797.4118 | T75: 14236.54649 | U75: 9553.501043 | V75: 104.4034182 | W75: 2529.16608 | X75: 73915.27474
A76: 2004 | B76: 1 | C76: 4 | D76: 2 | E76: 0.02175988135 | F76: 0.0174170472 | G76: 0.00195545 | H76: 0.0001062049224 | I76: 0.0037154446 | J76: 0.01389043173 | K76: 0.009489649792 | L76: 0.0001044034182 | M76: 0.00264354048 | N76: 0.0710820535 | O76: 21759.88135 | P76: 17417.0472 | Q76: 1955.45 | R76: 106.2049224 | S76: 3715.4446 | T76: 13890.43173 | U76: 9489.649792 | V76: 104.4034182 | W76: 2643.54048 | X76: 71082.0535
A77: 2004 | B77: 1 | C77: 4 | D77: 3 | E77: 0.02050485547 | F77: 0.01768320102 | G77: 0.00195545 | H77: 0.0001062049224 | I77: 0.0034884276 | J77: 0.01354403964 | K77: 0.009284519789 | L77: 0.0001044034182 | M77: 0.0026132064 | N77: 0.06928430825 | O77: 20504.85547 | P77: 17683.20102 | Q77: 1955.45 | R77: 106.2049224 | S77: 3488.4276 | T77: 13544.03964 | U77: 9284.519789 | V77: 104.4034182 | W77: 2613.2064 | X77: 69284.30825
A78: 2004 | B78: 1 | C78: 4 | D78: 4 | E78: 0.02018371462 | F78: 0.0174565444 | G78: 0.00195545 | H78: 0.0001062049224 | I78: 0.0034731592 | J78: 0.01330417017 | K78: 0.009326810007 | L78: 0.0001044034182 | M78: 0.002585856 | N78: 0.06849631273 | O78: 20183.71462 | P78: 17456.5444 | Q78: 1955.45 | R78: 106.2049224 | S78: 3473.1592 | T78: 13304.17017 | U78: 9326.810007 | V78: 104.4034182 | W78: 2585.856 | X78: 68496.31273
A79: 2004 | B79: 1 | C79: 4 | D79: 5 | E79: 0.01970147603 | F79: 0.01766916235 | G79: 0.00195545 | H79: 0.0001062049224 | I79: 0.003764866 | J79: 0.01360247727 | K79: 0.009399453902 | L79: 0.0001044034182 | M79: 0.00247197888 | N79: 0.06877547277 | O79: 19701.47603 | P79: 17669.16235 | Q79: 1955.45 | R79: 106.2049224 | S79: 3764.866 | T79: 13602.47727 | U79: 9399.453902 | V79: 104.4034182 | W79: 2471.97888 | X79: 68775.47277
A80: 2004 | B80: 1 | C80: 4 | D80: 6 | E80: 0.02095701599 | F80: 0.01762241951 | G80: 0.00195545 | H80: 0.0001062049224 | I80: 0.0038235288 | J80: 0.01348785448 | K80: 0.009809855298 | L80: 0.0001044034182 | M80: 0.00202343232 | N80: 0.06989016473 | O80: 20957.01599 | P80: 17622.41951 | Q80: 1955.45 | R80: 106.2049224 | S80: 3823.5288 | T80: 13487.85448 | U80: 9809.855298 | V80: 104.4034182 | W80: 2023.43232 | X80: 69890.16473
A81: 2004 | B81: 1 | C81: 4 | D81: 7 | E81: 0.02264379787 | F81: 0.0182278614 | G81: 0.00195545 | H81: 0.0001062049224 | I81: 0.0040111694 | J81: 0.01303316568 | K81: 0.0101956668 | L81: 0.0001044034182 | M81: 0.00181407744 | N81: 0.07209179693 | O81: 22643.79787 | P81: 18227.8614 | Q81: 1955.45 | R81: 106.2049224 | S81: 4011.1694 | T81: 13033.16568 | U81: 10195.6668 | V81: 104.4034182 | W81: 1814.07744 | X81: 72091.79693
A82: 2004 | B82: 1 | C82: 4 | D82: 8 | E82: 0.02465863839 | F82: 0.01904973329 | G82: 0.00195545 | H82: 0.0001062049224 | I82: 0.004040099 | J82: 0.01273314374 | K82: 0.01084767466 | L82: 0.0001044034182 | M82: 0.0017504256 | N82: 0.07524577302 | O82: 24658.63839 | P82: 19049.73329 | Q82: 1955.45 | R82: 106.2049224 | S82: 4040.099 | T82: 12733.14374 | U82: 10847.67466 | V82: 104.4034182 | W82: 1750.4256 | X82: 75245.77302
A83: 2004 | B83: 1 | C83: 4 | D83: 9 | E83: 0.02881946935 | F83: 0.01903432183 | G83: 0.0014666 | H83: 7.965437071e-05 | I83: 0.0039709894 | J83: 0.01213198675 | K83: 0.01101262224 | L83: 0.0001012594283 | M83: 0.00169174656 | N83: 0.07830864994 | O83: 28819.46935 | P83: 19034.32183 | Q83: 1466.6 | R83: 79.65437071 | S83: 3970.9894 | T83: 12131.98675 | U83: 11012.62224 | V83: 101.2594283 | W83: 1691.74656 | X83: 78308.64994
A84: 2004 | B84: 1 | C84: 4 | D84: 10 | E84: 0.03239221452 | F84: 0.02010346477 | G84: 0 | H84: 0 | I84: 0.0037134356 | J84: 0.0128234944 | K84: 0.01111498987 | L84: 9.18271371e-05 | M84: 0.00162710016 | N84: 0.08186652645 | O84: 32392.21452 | P84: 20103.46477 | Q84: 0 | R84: 0 | S84: 3713.4356 | T84: 12823.4944 | U84: 11114.98987 | V84: 91.8271371 | W84: 1627.10016 | X84: 81866.52645
A85: 2004 | B85: 1 | C85: 4 | D85: 11 | E85: 0.03213276242 | F85: 0.0211857624 | G85: 0 | H85: 0 | I85: 0.0036648178 | J85: 0.01393673326 | K85: 0.01100991524 | L85: 9.18271371e-05 | M85: 0.00162660288 | N85: 0.08364842114 | O85: 32132.76242 | P85: 21185.7624 | Q85: 0 | R85: 0 | S85: 3664.8178 | T85: 13936.73326 | U85: 11009.91524 | V85: 91.8271371 | W85: 1626.60288 | X85: 83648.42114
A86: 2004 | B86: 1 | C86: 4 | D86: 12 | E86: 0.03368223884 | F86: 0.02173354519 | G86: 0 | H86: 0 | I86: 0.0033385562 | J86: 0.01519584357 | K86: 0.01092743859 | L86: 9.18271371e-05 | M86: 0.0016111872 | N86: 0.08658063673 | O86: 33682.23884 | P86: 21733.54519 | Q86: 0 | R86: 0 | S86: 3338.5562 | T86: 15195.84357 | U86: 10927.43859 | V86: 91.8271371 | W86: 1611.1872 | X86: 86580.63673
A87: 2004 | B87: 1 | C87: 4 | D87: 13 | E87: 0.0341390416 | F87: 0.02173997354 | G87: 0 | H87: 0 | I87: 0.0032477494 | J87: 0.01548662327 | K87: 0.01082091277 | L87: 9.18271371e-05 | M87: 0.0016484832 | N87: 0.08717461091 | O87: 34139.0416 | P87: 21739.97354 | Q87: 0 | R87: 0 | S87: 3247.7494 | T87: 15486.62327 | U87: 10820.91277 | V87: 91.8271371 | W87: 1648.4832 | X87: 87174.61091
A88: 2004 | B88: 1 | C88: 4 | D88: 14 | E88: 0.03303517217 | F88: 0.02134676716 | G88: 0 | H88: 0 | I88: 0.0035306166 | J88: 0.01568386272 | K88: 0.01090503129 | L88: 9.18271371e-05 | M88: 0.00160919808 | N88: 0.08620247516 | O88: 33035.17217 | P88: 21346.76716 | Q88: 0 | R88: 0 | S88: 3530.6166 | T88: 15683.86272 | U88: 10905.03129 | V88: 91.8271371 | W88: 1609.19808 | X88: 86202.47516
A89: 2004 | B89: 1 | C89: 4 | D89: 15 | E89: 0.03250296402 | F89: 0.02140464778 | G89: 0 | H89: 0 | I89: 0.0038878168 | J89: 0.01476277343 | K89: 0.01091986017 | L89: 9.18271371e-05 | M89: 0.00156543744 | N89: 0.08513532678 | O89: 32502.96402 | P89: 21404.64778 | Q89: 0 | R89: 0 | S89: 3887.8168 | T89: 14762.77343 | U89: 10919.86017 | V89: 91.8271371 | W89: 1565.43744 | X89: 85135.32678
A90: 2004 | B90: 1 | C90: 4 | D90: 16 | E90: 0.03465000791 | F90: 0.02098959583 | G90: 0 | H90: 0 | I90: 0.0036551746 | J90: 0.01429655459 | K90: 0.01042518161 | L90: 9.18271371e-05 | M90: 0.0015813504 | N90: 0.08568969208 | O90: 34650.00791 | P90: 20989.59583 | Q90: 0 | R90: 0 | S90: 3655.1746 | T90: 14296.55459 | U90: 10425.18161 | V90: 91.8271371 | W90: 1581.3504 | X90: 85689.69208
A91: 2004 | B91: 1 | C91: 4 | D91: 17 | E91: 0.03704321484 | F91: 0.02173092635 | G91: 0 | H91: 0 | I91: 0.0038765664 | J91: 0.01483055995 | K91: 0.0106159132 | L91: 9.18271371e-05 | M91: 0.00155748096 | N91: 0.08974648883 | O91: 37043.21484 | P91: 21730.92635 | Q91: 0 | R91: 0 | S91: 3876.5664 | T91: 14830.55995 | U91: 10615.9132 | V91: 91.8271371 | W91: 1557.48096 | X91: 89746.48883
A92: 2004 | B92: 1 | C92: 4 | D92: 18 | E92: 0.04321212416 | F92: 0.02124622097 | G92: 0 | H92: 0 | I92: 0.0039107194 | J92: 0.01301492839 | K92: 0.01078710841 | L92: 9.18271371e-05 | M92: 0.00159974976 | N92: 0.09386267824 | O92: 43212.12416 | P92: 21246.22097 | Q92: 0 | R92: 0 | S92: 3910.7194 | T92: 13014.92839 | U92: 10787.10841 | V92: 91.8271371 | W92: 1599.74976 | X92: 93862.67824
A93: 2004 | B93: 1 | C93: 4 | D93: 19 | E93: 0.04585157299 | F93: 0.02064012249 | G93: 0.00048887 | H93: 2.655163794e-05 | I93: 0.0035993244 | J93: 0.01358568514 | K93: 0.01092133354 | L93: 9.497125562e-05 | M93: 0.00161814912 | N93: 0.09682658057 | O93: 45851.57299 | P93: 20640.12249 | Q93: 488.87 | R93: 26.55163794 | S93: 3599.3244 | T93: 13585.68514 | U93: 10921.33354 | V93: 94.97125562 | W93: 1618.14912 | X93: 96826.58057
A94: 2004 | B94: 1 | C94: 4 | D94: 20 | E94: 0.04170278445 | F94: 0.02022286456 | G94: 0.00195545 | H94: 0.0001062049224 | I94: 0.003935631 | J94: 0.01348364931 | K94: 0.01290537608 | L94: 0.0001044034182 | M94: 0.00164201856 | N94: 0.09605838231 | O94: 41702.78445 | P94: 20222.86456 | Q94: 1955.45 | R94: 106.2049224 | S94: 3935.631 | T94: 13483.64931 | U94: 12905.37608 | V94: 104.4034182 | W94: 1642.01856 | X94: 96058.38231
A95: 2004 | B95: 1 | C95: 4 | D95: 21 | E95: 0.03966267343 | F95: 0.02062948733 | G95: 0.00195545 | H95: 0.0001062049224 | I95: 0.0044198 | J95: 0.01374304557 | K95: 0.01276202224 | L95: 0.0001044034182 | M95: 0.00169920576 | N95: 0.09508229267 | O95: 39662.67343 | P95: 20629.48733 | Q95: 1955.45 | R95: 106.2049224 | S95: 4419.8 | T95: 13743.04557 | U95: 12762.02224 | V95: 104.4034182 | W95: 1699.20576 | X95: 95082.29267
A96: 2004 | B96: 1 | C96: 4 | D96: 22 | E96: 0.03842452804 | F96: 0.02007905843 | G96: 0.00195545 | H96: 0.0001062049224 | I96: 0.0048171802 | J96: 0.01217636789 | K96: 0.01273029435 | L96: 0.0001044034182 | M96: 0.00169124928 | N96: 0.09208473653 | O96: 38424.52804 | P96: 20079.05843 | Q96: 1955.45 | R96: 106.2049224 | S96: 4817.1802 | T96: 12176.36789 | U96: 12730.29435 | V96: 104.4034182 | W96: 1691.24928 | X96: 92084.73653
A97: 2004 | B97: 1 | C97: 4 | D97: 23 | E97: 0.03463785832 | F97: 0.01982033051 | G97: 0.00195545 | H97: 0.0001062049224 | I97: 0.0052185784 | J97: 0.01140908606 | K97: 0.01327532644 | L97: 0.0001044034182 | M97: 0.00169473024 | N97: 0.08822196831 | O97: 34637.85832 | P97: 19820.33051 | Q97: 1955.45 | R97: 106.2049224 | S97: 5218.5784 | T97: 11409.08606 | U97: 13275.32644 | V97: 104.4034182 | W97: 1694.73024 | X97: 88221.96831
A98: 2004 | B98: 1 | C98: 4 | D98: 24 | E98: 0.0256371163 | F98: 0.02183856568 | G98: 0.00195545 | H98: 0.0001062049224 | I98: 0.0063046438 | J98: 0.01268946742 | K98: 0.01425761897 | L98: 0.0001044034182 | M98: 0.0017330208 | N98: 0.0846264913 | O98: 25637.1163 | P98: 21838.56568 | Q98: 1955.45 | R98: 106.2049224 | S98: 6304.6438 | T98: 12689.46742 | U98: 14257.61897 | V98: 104.4034182 | W98: 1733.0208 | X98: 84626.4913
A99: 2004 | B99: 1 | C99: 5 | D99: 1 | E99: 0.02578020239 | F99: 0.02443151429 | G99: 0.00195545 | H99: 0.0001062049224 | I99: 0.0065999668 | J99: 0.01487127403 | K99: 0.01545484215 | L99: 0.0001044034182 | M99: 0.00180065088 | N99: 0.09110450889 | O99: 25780.20239 | P99: 24431.51429 | Q99: 1955.45 | R99: 106.2049224 | S99: 6599.9668 | T99: 14871.27403 | U99: 15454.84215 | V99: 104.4034182 | W99: 1800.65088 | X99: 91104.50889
A100: 2004 | B100: 1 | C100: 5 | D100: 2 | E100: 0.02378964572 | F100: 0.02394183758 | G100: 0.00195545 | H100: 0.0001062049224 | I100: 0.0062009794 | J100: 0.01522710089 | K100: 0.01542737802 | L100: 0.0001044034182 | M100: 0.00174843648 | N100: 0.08850143644 | O100: 23789.64572 | P100: 23941.83758 | Q100: 1955.45 | R100: 106.2049224 | S100: 6200.9794 | T100: 15227.10089 | U100: 15427.37802 | V100: 104.4034182 | W100: 1748.43648 | X100: 88501.43644
A101: 2004 | B101: 1 | C101: 5 | D101: 3 | E101: 0.0231475271 | F101: 0.02349560174 | G101: 0.00195545 | H101: 0.0001062049224 | I101: 0.0064420594 | J101: 0.01554793482 | K101: 0.01556523336 | L101: 0.0001044034182 | M101: 0.00176086848 | N101: 0.08812528324 | O101: 23147.5271 | P101: 23495.60174 | Q101: 1955.45 | R101: 106.2049224 | S101: 6442.0594 | T101: 15547.93482 | U101: 15565.23336 | V101: 104.4034182 | W101: 1760.86848 | X101: 88125.28324
A102: 2004 | B102: 1 | C102: 5 | D102: 4 | E102: 0.0233006092 | F102: 0.02373955262 | G102: 0.00195545 | H102: 0.0001062049224 | I102: 0.0067570706 | J102: 0.01420451678 | K102: 0.01579569322 | L102: 0.0001044034182 | M102: 0.00168478464 | N102: 0.0876482854 | O102: 23300.6092 | P102: 23739.55262 | Q102: 1955.45 | R102: 106.2049224 | S102: 6757.0706 | T102: 14204.51678 | U102: 15795.69322 | V102: 104.4034182 | W102: 1684.78464 | X102: 87648.2854
A103: 2004 | B103: 1 | C103: 5 | D103: 5 | E103: 0.02355326052 | F103: 0.02465845522 | G103: 0.00195545 | H103: 0.0001062049224 | I103: 0.0055010438 | J103: 0.01486600105 | K103: 0.01675904752 | L103: 0.0001044034182 | M103: 0.00165992064 | N103: 0.08916378708 | O103: 23553.26052 | P103: 24658.45522 | Q103: 1955.45 | R103: 106.2049224 | S103: 5501.0438 | T103: 14866.00105 | U103: 16759.04752 | V103: 104.4034182 | W103: 1659.92064 | X103: 89163.78708
A104: 2004 | B104: 1 | C104: 5 | D104: 6 | E104: 0.02539694893 | F104: 0.02561186102 | G104: 0.00195545 | H104: 0.0001062049224 | I104: 0.0069877038 | J104: 0.01530624184 | K104: 0.01742210533 | L104: 0.0001044034182 | M104: 0.00164798592 | N104: 0.09453890519 | O104: 25396.94893 | P104: 25611.86102 | Q104: 1955.45 | R104: 106.2049224 | S104: 6987.7038 | T104: 15306.24184 | U104: 17422.10533 | V104: 104.4034182 | W104: 1647.98592 | X104: 94538.90519
A105: 2004 | B105: 1 | C105: 5 | D105: 7 | E105: 0.03034816093 | F105: 0.02844226454 | G105: 0.00195545 | H105: 0.0001062049224 | I105: 0.0061186104 | J105: 0.01540292315 | K105: 0.0180118125 | L105: 0.0001044034182 | M105: 0.00169473024 | N105: 0.1021845601 | O105: 30348.16093 | P105: 28442.26454 | Q105: 1955.45 | R105: 106.2049224 | S105: 6118.6104 | T105: 15402.92315 | U105: 18011.8125 | V105: 104.4034182 | W105: 1694.73024 | X105: 102184.5601
A106: 2004 | B106: 1 | C106: 5 | D106: 8 | E106: 0.03590605615 | F106: 0.03274997625 | G106: 0.00195545 | H106: 0.0001062049224 | I106: 0.0079447914 | J106: 0.0159187834 | K106: 0.01971126515 | L106: 0.0001044034182 | M106: 0.00177330048 | N106: 0.1161702312 | O106: 35906.05615 | P106: 32749.97625 | Q106: 1955.45 | R106: 106.2049224 | S106: 7944.7914 | T106: 15918.7834 | U106: 19711.26515 | V106: 104.4034182 | W106: 1773.30048 | X106: 116170.2312
A107: 2004 | B107: 1 | C107: 5 | D107: 9 | E107: 0.03793974544 | F107: 0.03549621184 | G107: 0.0014666 | H107: 7.965437071e-05 | I107: 0.0080086776 | J107: 0.01675616634 | K107: 0.0205203718 | L107: 0.0001012594283 | M107: 0.00171909696 | N107: 0.1220877838 | O107: 37939.74544 | P107: 35496.21184 | Q107: 1466.6 | R107: 79.65437071 | S107: 8008.6776 | T107: 16756.16634 | U107: 20520.3718 | V107: 101.2594283 | W107: 1719.09696 | X107: 122087.7838
A108: 2004 | B108: 1 | C108: 5 | D108: 10 | E108: 0.03513426703 | F108: 0.03825630941 | G108: 0 | H108: 0 | I108: 0.0079745246 | J108: 0.01910778338 | K108: 0.02043898306 | L108: 9.18271371e-05 | M108: 0.00253960896 | N108: 0.1235433036 | O108: 35134.26703 | P108: 38256.30941 | Q108: 0 | R108: 0 | S108: 7974.5246 | T108: 19107.78338 | U108: 20438.98306 | V108: 91.8271371 | W108: 2539.60896 | X108: 123543.3036
A109: 2004 | B109: 1 | C109: 5 | D109: 11 | E109: 0.03490164291 | F109: 0.04051732097 | G109: 0 | H109: 0 | I109: 0.0084663278 | J109: 0.01967001846 | K109: 0.02046827094 | L109: 9.18271371e-05 | M109: 0.00328751808 | N109: 0.1274029263 | O109: 34901.64291 | P109: 40517.32097 | Q109: 0 | R109: 0 | S109: 8466.3278 | T109: 19670.01846 | U109: 20468.27094 | V109: 91.8271371 | W109: 3287.51808 | X109: 127402.9263
A110: 2004 | B110: 1 | C110: 5 | D110: 12 | E110: 0.03528177976 | F110: 0.03969072708 | G110: 0 | H110: 0 | I110: 0.0082172118 | J110: 0.01965666193 | K110: 0.02008886338 | L110: 9.18271371e-05 | M110: 0.00337006656 | N110: 0.1263971376 | O110: 35281.77976 | P110: 39690.72708 | Q110: 0 | R110: 0 | S110: 8217.2118 | T110: 19656.66193 | U110: 20088.86338 | V110: 91.8271371 | W110: 3370.06656 | X110: 126397.1376
A111: 2004 | B111: 1 | C111: 5 | D111: 13 | E111: 0.03591746949 | F111: 0.03914139693 | G111: 0 | H111: 0 | I111: 0.0069579706 | J111: 0.01889865041 | K111: 0.02020765025 | L111: 9.18271371e-05 | M111: 0.00329597184 | N111: 0.1245109366 | O111: 35917.46949 | P111: 39141.39693 | Q111: 0 | R111: 0 | S111: 6957.9706 | T111: 18898.65041 | U111: 20207.65025 | V111: 91.8271371 | W111: 3295.97184 | X111: 124510.9366
A112: 2004 | B112: 1 | C112: 5 | D112: 14 | E112: 0.03488225283 | F112: 0.0393846782 | G112: 0 | H112: 0 | I112: 0.0082473468 | J112: 0.01897981961 | K112: 0.02061869302 | L112: 9.18271371e-05 | M112: 0.0034511232 | N112: 0.1256557408 | O112: 34882.25283 | P112: 39384.6782 | Q112: 0 | R112: 0 | S112: 8247.3468 | T112: 18979.81961 | U112: 20618.69302 | V112: 91.8271371 | W112: 3451.1232 | X112: 125655.7408
A113: 2004 | B113: 1 | C113: 5 | D113: 15 | E113: 0.03453834766 | F113: 0.03750081664 | G113: 0 | H113: 0 | I113: 0.0086997736 | J113: 0.0179849803 | K113: 0.02037194683 | L113: 9.18271371e-05 | M113: 0.0036823584 | N113: 0.1228700506 | O113: 34538.34766 | P113: 37500.81664 | Q113: 0 | R113: 0 | S113: 8699.7736 | T113: 17984.9803 | U113: 20371.94683 | V113: 91.8271371 | W113: 3682.3584 | X113: 122870.0506
A114: 2004 | B114: 1 | C114: 5 | D114: 16 | E114: 0.03693373996 | F114: 0.03593773194 | G114: 0 | H114: 0 | I114: 0.006975248 | J114: 0.01706192783 | K114: 0.02042239786 | L114: 9.18271371e-05 | M114: 0.00362367936 | N114: 0.1210465521 | O114: 36933.73996 | P114: 35937.73194 | Q114: 0 | R114: 0 | S114: 6975.248 | T114: 17061.92783 | U114: 20422.39786 | V114: 91.8271371 | W114: 3623.67936 | X114: 121046.5521
A115: 2004 | B115: 1 | C115: 5 | D115: 17 | E115: 0.04025993887 | F115: 0.03705654886 | G115: 0 | H115: 0 | I115: 0.0063616994 | J115: 0.01633609452 | K115: 0.02035602734 | L115: 9.18271371e-05 | M115: 0.00359632896 | N115: 0.1240584651 | O115: 40259.93887 | P115: 37056.54886 | Q115: 0 | R115: 0 | S115: 6361.6994 | T115: 16336.09452 | U115: 20356.02734 | V115: 91.8271371 | W115: 3596.32896 | X115: 124058.4651
A116: 2004 | B116: 1 | C116: 5 | D116: 18 | E116: 0.04822466322 | F116: 0.03624770182 | G116: 0 | H116: 0 | I116: 0.0054480062 | J116: 0.01642230573 | K116: 0.019791057 | L116: 9.18271371e-05 | M116: 0.00359235072 | N116: 0.1298179118 | O116: 48224.66322 | P116: 36247.70182 | Q116: 0 | R116: 0 | S116: 5448.0062 | T116: 16422.30573 | U116: 19791.057 | V116: 91.8271371 | W116: 3592.35072 | X116: 129817.9118
A117: 2004 | B117: 1 | C117: 5 | D117: 19 | E117: 0.04839186656 | F117: 0.03533906148 | G117: 0.00048887 | H117: 2.655163794e-05 | I117: 0.0058369486 | J117: 0.01694804665 | K117: 0.02008575816 | L117: 9.497125562e-05 | M117: 0.00350532672 | N117: 0.1307174011 | O117: 48391.86656 | P117: 35339.06148 | Q117: 488.87 | R117: 26.55163794 | S117: 5836.9486 | T117: 16948.04665 | U117: 20085.75816 | V117: 94.97125562 | W117: 3505.32672 | X117: 130717.4011
A118: 2004 | B118: 1 | C118: 5 | D118: 20 | E118: 0.0482456319 | F118: 0.03408851921 | G118: 0.00195545 | H118: 0.0001062049224 | I118: 0.005799983 | J118: 0.01538885185 | K118: 0.01943872718 | L118: 0.0001044034182 | M118: 0.00354262272 | N118: 0.1286703942 | O118: 48245.6319 | P118: 34088.51921 | Q118: 1955.45 | R118: 106.2049224 | S118: 5799.983 | T118: 15388.85185 | U118: 19438.72718 | V118: 104.4034182 | W118: 3542.62272 | X118: 128670.3942
A119: 2004 | B119: 1 | C119: 5 | D119: 21 | E119: 0.04526728452 | F119: 0.03271135874 | G119: 0.00195545 | H119: 0.0001062049224 | I119: 0.0059012366 | J119: 0.01526368537 | K119: 0.02022743844 | L119: 0.0001044034182 | M119: 0.00352173696 | N119: 0.125058799 | O119: 45267.28452 | P119: 32711.35874 | Q119: 1955.45 | R119: 106.2049224 | S119: 5901.2366 | T119: 15263.68537 | U119: 20227.43844 | V119: 104.4034182 | W119: 3521.73696 | X119: 125058.799
A120: 2004 | B120: 1 | C120: 5 | D120: 22 | E120: 0.04120821454 | F120: 0.03228062676 | G120: 0.00195545 | H120: 0.0001062049224 | I120: 0.0056786394 | J120: 0.0141038254 | K120: 0.02057093197 | L120: 0.0001044034182 | M120: 0.0035282016 | N120: 0.119536498 | O120: 41208.21454 | P120: 32280.62676 | Q120: 1955.45 | R120: 106.2049224 | S120: 5678.6394 | T120: 14103.8254 | U120: 20570.93197 | V120: 104.4034182 | W120: 3528.2016 | X120: 119536.498
A121: 2004 | B121: 1 | C121: 5 | D121: 23 | E121: 0.03723724089 | F121: 0.0304184373 | G121: 0.00195545 | H121: 0.0001062049224 | I121: 0.0060908862 | J121: 0.0126412042 | K121: 0.02001669759 | L121: 0.0001044034182 | M121: 0.00360925824 | N121: 0.1121797828 | O121: 37237.24089 | P121: 30418.4373 | Q121: 1955.45 | R121: 106.2049224 | S121: 6090.8862 | T121: 12641.2042 | U121: 20016.69759 | V121: 104.4034182 | W121: 3609.25824 | X121: 112179.7828
A122: 2004 | B122: 1 | C122: 5 | D122: 24 | E122: 0.02897958368 | F122: 0.0295991393 | G122: 0.00195545 | H122: 0.0001062049224 | I122: 0.0060687872 | J122: 0.01470233344 | K122: 0.01968553534 | L122: 0.0001044034182 | M122: 0.00352621248 | N122: 0.1047276498 | O122: 28979.58368 | P122: 29599.1393 | Q122: 1955.45 | R122: 106.2049224 | S122: 6068.7872 | T122: 14702.33344 | U122: 19685.53534 | V122: 104.4034182 | W122: 3526.21248 | X122: 104727.6498
A123: 2004 | B123: 1 | C123: 6 | D123: 1 | E123: 0.02491950811 | F123: 0.02845808661 | G123: 0.00195545 | H123: 0.0001062049224 | I123: 0.0064842484 | J123: 0.01514876047 | K123: 0.01866284413 | L123: 0.0001044034182 | M123: 0.0034784736 | N123: 0.09931797967 | O123: 24919.50811 | P123: 28458.08661 | Q123: 1955.45 | R123: 106.2049224 | S123: 6484.2484 | T123: 15148.76047 | U123: 18662.84413 | V123: 104.4034182 | W123: 3478.4736 | X123: 99317.97967
A124: 2004 | B124: 1 | C124: 6 | D124: 2 | E124: 0.02336828893 | F124: 0.02692603173 | G124: 0.00195545 | H124: 0.0001062049224 | I124: 0.005804001 | J124: 0.0151572821 | K124: 0.01830359857 | L124: 0.0001044034182 | M124: 0.00353416896 | N124: 0.09525942963 | O124: 23368.28893 | P124: 26926.03173 | Q124: 1955.45 | R124: 106.2049224 | S124: 5804.001 | T124: 15157.2821 | U124: 18303.59857 | V124: 104.4034182 | W124: 3534.16896 | X124: 95259.42963
A125: 2004 | B125: 1 | C125: 6 | D125: 3 | E125: 0.02295408068 | F125: 0.02628915974 | G125: 0.00195545 | H125: 0.0001062049224 | I125: 0.0064625512 | J125: 0.01478192976 | K125: 0.01828781163 | L125: 0.0001044034182 | M125: 0.00351278592 | N125: 0.09445437727 | O125: 22954.08068 | P125: 26289.15974 | Q125: 1955.45 | R125: 106.2049224 | S125: 6462.5512 | T125: 14781.92976 | U125: 18287.81163 | V125: 104.4034182 | W125: 3512.78592 | X125: 94454.37727
A126: 2004 | B126: 1 | C126: 6 | D126: 4 | E126: 0.02317960545 | F126: 0.0253780055 | G126: 0.00195545 | H126: 0.0001062049224 | I126: 0.0066915772 | J126: 0.01431199875 | K126: 0.0176564095 | L126: 0.0001044034182 | M126: 0.00357444864 | N126: 0.09295810338 | O126: 23179.60545 | P126: 25378.0055 | Q126: 1955.45 | R126: 106.2049224 | S126: 6691.5772 | T126: 14311.99875 | U126: 17656.4095 | V126: 104.4034182 | W126: 3574.44864 | X126: 92958.10338
A127: 2004 | B127: 1 | C127: 6 | D127: 5 | E127: 0.02385515076 | F127: 0.02571307268 | G127: 0.00195545 | H127: 0.0001062049224 | I127: 0.0060294108 | J127: 0.01431401223 | K127: 0.01818472089 | L127: 0.0001044034182 | M127: 0.00349239744 | N127: 0.09375482313 | O127: 23855.15076 | P127: 25713.07268 | Q127: 1955.45 | R127: 106.2049224 | S127: 6029.4108 | T127: 14314.01223 | U127: 18184.72089 | V127: 104.4034182 | W127: 3492.39744 | X127: 93754.82313
A128: 2004 | B128: 1 | C128: 6 | D128: 6 | E128: 0.02581925224 | F128: 0.02617881378 | G128: 0.00195545 | H128: 0.0001062049224 | I128: 0.0070668584 | J128: 0.0152129266 | K128: 0.01826775547 | L128: 0.0001044034182 | M128: 0.00344316672 | N128: 0.09815483155 | O128: 25819.25224 | P128: 26178.81378 | Q128: 1955.45 | R128: 106.2049224 | S128: 7066.8584 | T128: 15212.9266 | U128: 18267.75547 | V128: 104.4034182 | W128: 3443.16672 | X128: 98154.83155
A129: 2004 | B129: 1 | C129: 6 | D129: 7 | E129: 0.03011874702 | F129: 0.02943423739 | G129: 0.00195545 | H129: 0.0001062049224 | I129: 0.0077764372 | J129: 0.01501261897 | K129: 0.01962424409 | L129: 0.0001044034182 | M129: 0.00343322112 | N129: 0.1075655641 | O129: 30118.74702 | P129: 29434.23739 | Q129: 1955.45 | R129: 106.2049224 | S129: 7776.4372 | T129: 15012.61897 | U129: 19624.24409 | V129: 104.4034182 | W129: 3433.22112 | X129: 107565.5641
A130: 2004 | B130: 1 | C130: 6 | D130: 8 | E130: 0.0350730494 | F130: 0.03476613648 | G130: 0.00195545 | H130: 0.0001062049224 | I130: 0.0066413522 | J130: 0.01552142333 | K130: 0.02140356803 | L130: 0.0001044034182 | M130: 0.00307866048 | N130: 0.1186502483 | O130: 35073.0494 | P130: 34766.13648 | Q130: 1955.45 | R130: 106.2049224 | S130: 6641.3522 | T130: 15521.42333 | U130: 21403.56803 | V130: 104.4034182 | W130: 3078.66048 | X130: 118650.2483
A131: 2004 | B131: 1 | C131: 6 | D131: 9 | E131: 0.03632273582 | F131: 0.03728076234 | G131: 0.0014666 | H131: 7.965437071e-05 | I131: 0.0079459968 | J131: 0.01730627665 | K131: 0.02188296798 | L131: 0.0001012594283 | M131: 0.00257392128 | N131: 0.1249601747 | O131: 36322.73582 | P131: 37280.76234 | Q131: 1466.6 | R131: 79.65437071 | S131: 7945.9968 | T131: 17306.27665 | U131: 21882.96798 | V131: 101.2594283 | W131: 2573.92128 | X131: 124960.1747
A132: 2004 | B132: 1 | C132: 6 | D132: 10 | E132: 0.03378760355 | F132: 0.03883049822 | G132: 0 | H132: 0 | I132: 0.0071122618 | J132: 0.02060241701 | K132: 0.02159013876 | L132: 9.18271371e-05 | M132: 0.003431232 | N132: 0.1254459785 | O132: =E132*1000000 -> 33787.60355 | P132: =F132*1000000 -> 38830.49822 | Q132: =G132*1000000 -> 0 | R132: =H132*1000000 -> 0 | S132: =I132*1000000 -> 7112.2618 | T132: =J132*1000000 -> 20602.41701 | U132: =K132*1000000 -> 21590.13876 | V132: =L132*1000000 -> 91.8271371 | W132: =M132*1000000 -> 3431.232 | X132: =SUM(O132:W132) -> 125445.9785
A133: 2004 | B133: 1 | C133: 6 | D133: 11 | E133: 0.03314601968 | F133: 0.04092998197 | G133: 0 | H133: 0 | I133: 0.0082356946 | J133: 0.0194337644 | K133: 0.02252552836 | L133: 9.18271371e-05 | M133: 0.00338448768 | N133: 0.1277473038 | O133: 33146.01968 | P133: 40929.98197 | Q133: 0 | R133: 0 | S133: 8235.6946 | T133: 19433.7644 | U133: 22525.52836 | V133: 91.8271371 | W133: 3384.48768 | X133: 127747.3038
A134: 2004 | B134: 1 | C134: 6 | D134: 12 | E134: 0.03478967932 | F134: 0.03908894832 | G134: 0 | H134: 0 | I134: 0.0084623098 | J134: 0.01886364232 | K134: 0.02188033871 | L134: 9.18271371e-05 | M134: 0.0034212864 | N134: 0.126598032 | O134: 34789.67932 | P134: 39088.94832 | Q134: 0 | R134: 0 | S134: 8462.3098 | T134: 18863.64232 | U134: 21880.33871 | V134: 91.8271371 | W134: 3421.2864 | X134: 126598.032
A135: 2004 | B135: 1 | C135: 6 | D135: 13 | E135: 0.03390807865 | F135: 0.03926029063 | G135: 0 | H135: 0 | I135: 0.00739312 | J135: 0.01891297481 | K135: 0.02138937983 | L135: 9.18271371e-05 | M135: 0.00340487616 | N135: 0.1243605472 | O135: 33908.07865 | P135: 39260.29063 | Q135: 0 | R135: 0 | S135: 7393.12 | T135: 18912.97481 | U135: 21389.37983 | V135: 91.8271371 | W135: 3404.87616 | X135: 124360.5472
A136: 2004 | B136: 1 | C136: 6 | D136: 14 | E136: 0.03213699777 | F136: 0.03990815701 | G136: 0 | H136: 0 | I136: 0.0085486968 | J136: 0.01819196262 | K136: 0.02134968667 | L136: 9.18271371e-05 | M136: 0.00353914176 | N136: 0.1237664698 | O136: 32136.99777 | P136: 39908.15701 | Q136: 0 | R136: 0 | S136: 8548.6968 | T136: 18191.96262 | U136: 21349.68667 | V136: 91.8271371 | W136: 3539.14176 | X136: 123766.4698
A137: 2004 | B137: 1 | C137: 6 | D137: 15 | E137: 0.03293405941 | F137: 0.03923817467 | G137: 0 | H137: 0 | I137: 0.0078684494 | J137: 0.01842556126 | K137: 0.02051021367 | L137: 9.18271371e-05 | M137: 0.00352670976 | N137: 0.1225949953 | O137: 32934.05941 | P137: 39238.17467 | Q137: 0 | R137: 0 | S137: 7868.4494 | T137: 18425.56126 | U137: 20510.21367 | V137: 91.8271371 | W137: 3526.70976 | X137: 122594.9953
A138: 2004 | B138: 1 | C138: 6 | D138: 16 | E138: 0.03364300706 | F138: 0.03746925623 | G138: 0 | H138: 0 | I138: 0.0062616512 | J138: 0.01918618871 | K138: 0.02045717322 | L138: 9.18271371e-05 | M138: 0.00355654656 | N138: 0.1206656501 | O138: 33643.00706 | P138: 37469.25623 | Q138: 0 | R138: 0 | S138: 6261.6512 | T138: 19186.18871 | U138: 20457.17322 | V138: 91.8271371 | W138: 3556.54656 | X138: 120665.6501
A139: 2004 | B139: 1 | C139: 6 | D139: 17 | E139: 0.03818669738 | F139: 0.03721050959 | G139: 0 | H139: 0 | I139: 0.0053837182 | J139: 0.01810801543 | K139: 0.02072135006 | L139: 9.18271371e-05 | M139: 0.00355356288 | N139: 0.1232556807 | O139: 38186.69738 | P139: 37210.50959 | Q139: 0 | R139: 0 | S139: 5383.7182 | T139: 18108.01543 | U139: 20721.35006 | V139: 91.8271371 | W139: 3553.56288 | X139: 123255.6807
A140: 2004 | B140: 1 | C140: 6 | D140: 18 | E140: 0.0442850673 | F140: 0.03695192943 | G140: 0 | H140: 0 | I140: 0.0061226284 | J140: 0.01814605592 | K140: 0.0202543846 | L140: 9.18271371e-05 | M140: 0.0033417216 | N140: 0.1291936144 | O140: 44285.0673 | P140: 36951.92943 | Q140: 0 | R140: 0 | S140: 6122.6284 | T140: 18146.05592 | U140: 20254.3846 | V140: 91.8271371 | W140: 3341.7216 | X140: 129193.6144
A141: 2004 | B141: 1 | C141: 6 | D141: 19 | E141: 0.04747195081 | F141: 0.0359759766 | G141: 0.00048887 | H141: 2.655163794e-05 | I141: 0.0056227892 | J141: 0.01788003972 | K141: 0.02035497237 | L141: 9.497125562e-05 | M141: 0.00335116992 | N141: 0.1312672915 | O141: 47471.95081 | P141: 35975.9766 | Q141: 488.87 | R141: 26.55163794 | S141: 5622.7892 | T141: 17880.03972 | U141: 20354.97237 | V141: 94.97125562 | W141: 3351.16992 | X141: 131267.2915
A142: 2004 | B142: 1 | C142: 6 | D142: 20 | E142: 0.04716558429 | F142: 0.03468823137 | G142: 0.00195545 | H142: 0.0001062049224 | I142: 0.0057405166 | J142: 0.01668909188 | K142: 0.0204784192 | L142: 0.0001044034182 | M142: 0.00333724608 | N142: 0.1302651478 | O142: 47165.58429 | P142: 34688.23137 | Q142: 1955.45 | R142: 106.2049224 | S142: 5740.5166 | T142: 16689.09188 | U142: 20478.4192 | V142: 104.4034182 | W142: 3337.24608 | X142: 130265.1478
A143: 2004 | B143: 1 | C143: 6 | D143: 21 | E143: 0.04578897642 | F143: 0.0336874306 | G143: 0.00195545 | H143: 0.0001062049224 | I143: 0.0051305842 | J143: 0.01558867638 | K143: 0.02025065864 | L143: 0.0001044034182 | M143: 0.0033665856 | N143: 0.1259789702 | O143: 45788.97642 | P143: 33687.4306 | Q143: 1955.45 | R143: 106.2049224 | S143: 5130.5842 | T143: 15588.67638 | U143: 20250.65864 | V143: 104.4034182 | W143: 3366.5856 | X143: 125978.9702
A144: 2004 | B144: 1 | C144: 6 | D144: 22 | E144: 0.04176381359 | F144: 0.03310415145 | G144: 0.00195545 | H144: 0.0001062049224 | I144: 0.006237945 | J144: 0.01521584095 | K144: 0.01995689766 | L144: 0.0001044034182 | M144: 0.00329249088 | N144: 0.1217371979 | O144: 41763.81359 | P144: 33104.15145 | Q144: 1955.45 | R144: 106.2049224 | S144: 6237.945 | T144: 15215.84095 | U144: 19956.89766 | V144: 104.4034182 | W144: 3292.49088 | X144: 121737.1979
A145: 2004 | B145: 1 | C145: 6 | D145: 23 | E145: 0.03842585045 | F145: 0.03018913433 | G145: 0.00195545 | H145: 0.0001062049224 | I145: 0.0063460292 | J145: 0.01361883301 | K145: 0.01959458232 | L145: 0.0001044034182 | M145: 0.00326016768 | N145: 0.1136006553 | O145: 38425.85045 | P145: 30189.13433 | Q145: 1955.45 | R145: 106.2049224 | S145: 6346.0292 | T145: 13618.83301 | U145: 19594.58232 | V145: 104.4034182 | W145: 3260.16768 | X145: 113600.6553
A146: 2004 | B146: 1 | C146: 6 | D146: 24 | E146: 0.02931532759 | F146: 0.0289896252 | G146: 0.00195545 | H146: 0.0001062049224 | I146: 0.0079122456 | J146: 0.01337888575 | K146: 0.01949311654 | L146: 0.0001044034182 | M146: 0.00322336896 | N146: 0.104478628 | O146: 29315.32759 | P146: 28989.6252 | Q146: 1955.45 | R146: 106.2049224 | S146: 7912.2456 | T146: 13378.88575 | U146: 19493.11654 | V146: 104.4034182 | W146: 3223.36896 | X146: 104478.628
A147: 2004 | B147: 1 | C147: 7 | D147: 1 | E147: 0.02510243163 | F147: 0.02861713604 | G147: 0.00195545 | H147: 0.0001062049224 | I147: 0.0066923808 | J147: 0.01525119243 | K147: 0.01854182081 | L147: 0.0001044034182 | M147: 0.00319651584 | N147: 0.09956753589 | O147: 25102.43163 | P147: 28617.13604 | Q147: 1955.45 | R147: 106.2049224 | S147: 6692.3808 | T147: 15251.19243 | U147: 18541.82081 | V147: 104.4034182 | W147: 3196.51584 | X147: 99567.53589
A148: 2004 | B148: 1 | C148: 7 | D148: 2 | E148: 0.02324162825 | F148: 0.02684919546 | G148: 0.00195545 | H148: 0.0001062049224 | I148: 0.0067659102 | J148: 0.01479127569 | K148: 0.01815502719 | L148: 0.0001044034182 | M148: 0.00352969344 | N148: 0.09549878858 | O148: 23241.62825 | P148: 26849.19546 | Q148: 1955.45 | R148: 106.2049224 | S148: 6765.9102 | T148: 14791.27569 | U148: 18155.02719 | V148: 104.4034182 | W148: 3529.69344 | X148: 95498.78858
A149: 2004 | B149: 1 | C149: 7 | D149: 3 | E149: 0.02306403763 | F149: 0.02639882782 | G149: 0.00195545 | H149: 0.0001062049224 | I149: 0.0067598832 | J149: 0.01476159159 | K149: 0.01808819717 | L149: 0.0001044034182 | M149: 0.00345311232 | N149: 0.09469170808 | O149: 23064.03763 | P149: 26398.82782 | Q149: 1955.45 | R149: 106.2049224 | S149: 6759.8832 | T149: 14761.59159 | U149: 18088.19717 | V149: 104.4034182 | W149: 3453.11232 | X149: 94691.70808
A150: 2004 | B150: 1 | C150: 7 | D150: 4 | E150: 0.02355897501 | F150: 0.02569980691 | G150: 0.00195545 | H150: 0.0001062049224 | I150: 0.0062986168 | J150: 0.01468690371 | K150: 0.01740975964 | L150: 0.0001044034182 | M150: 0.0033715584 | N150: 0.09319167881 | O150: 23558.97501 | P150: 25699.80691 | Q150: 1955.45 | R150: 106.2049224 | S150: 6298.6168 | T150: 14686.90371 | U150: 17409.75964 | V150: 104.4034182 | W150: 3371.5584 | X150: 93191.67881
A151: 2004 | B151: 1 | C151: 7 | D151: 5 | E151: 0.02416423942 | F151: 0.02611290375 | G151: 0.00195545 | H151: 0.0001062049224 | I151: 0.0063629048 | J151: 0.01457556285 | K151: 0.01733165449 | L151: 0.0001044034182 | M151: 0.0032770752 | N151: 0.09399039886 | O151: 24164.23942 | P151: 26112.90375 | Q151: 1955.45 | R151: 106.2049224 | S151: 6362.9048 | T151: 14575.56285 | U151: 17331.65449 | V151: 104.4034182 | W151: 3277.0752 | X151: 93990.39886
A152: 2004 | B152: 1 | C152: 7 | D152: 6 | E152: 0.02577300899 | F152: 0.02635743896 | G152: 0.00195545 | H152: 0.0001062049224 | I152: 0.0077121492 | J152: 0.01492797544 | K152: 0.01821460842 | L152: 0.0001044034182 | M152: 0.00325022208 | N152: 0.09840146143 | O152: 25773.00899 | P152: 26357.43896 | Q152: 1955.45 | R152: 106.2049224 | S152: 7712.1492 | T152: 14927.97544 | U152: 18214.60842 | V152: 104.4034182 | W152: 3250.22208 | X152: 98401.46143
A153: 2004 | B153: 1 | C153: 7 | D153: 7 | E153: 0.0306639028 | F153: 0.02969799056 | G153: 0.00195545 | H153: 0.0001062049224 | I153: 0.0075413842 | J153: 0.01555432563 | K153: 0.0190524641 | L153: 0.0001044034182 | M153: 0.00315971712 | N153: 0.1078358428 | O153: 30663.9028 | P153: 29697.99056 | Q153: 1955.45 | R153: 106.2049224 | S153: 7541.3842 | T153: 15554.32563 | U153: 19052.4641 | V153: 104.4034182 | W153: 3159.71712 | X153: 107835.8428
A154: 2004 | B154: 1 | C154: 7 | D154: 8 | E154: 0.03504797689 | F154: 0.03459247812 | G154: 0.00195545 | H154: 0.0001062049224 | I154: 0.008062117 | J154: 0.01520968127 | K154: 0.02074765007 | L154: 0.0001044034182 | M154: 0.00312242112 | N154: 0.1189483828 | O154: 35047.97689 | P154: 34592.47812 | Q154: 1955.45 | R154: 106.2049224 | S154: 8062.117 | T154: 15209.68127 | U154: 20747.65007 | V154: 104.4034182 | W154: 3122.42112 | X154: 118948.3828
A155: 2004 | B155: 1 | C155: 7 | D155: 9 | E155: 0.03644969403 | F155: 0.03720935424 | G155: 0.0014666 | H155: 7.965437071e-05 | I155: 0.0082513648 | J155: 0.0172430787 | K155: 0.02137161256 | L155: 0.0001012594283 | M155: 0.00310153536 | N155: 0.1252741535 | O155: 36449.69403 | P155: 37209.35424 | Q155: 1466.6 | R155: 79.65437071 | S155: 8251.3648 | T155: 17243.0787 | U155: 21371.61256 | V155: 101.2594283 | W155: 3101.53536 | X155: 125274.1535
A156: 2004 | B156: 1 | C156: 7 | D156: 10 | E156: 0.03363054877 | F156: 0.03879123141 | G156: 0 | H156: 0 | I156: 0.0083566364 | J156: 0.02014321884 | K156: 0.02177298553 | L156: 9.18271371e-05 | M156: 0.00297472896 | N156: 0.125761177 | O156: 33630.54877 | P156: 38791.23141 | Q156: 0 | R156: 0 | S156: 8356.6364 | T156: 20143.21884 | U156: 21772.98553 | V156: 91.8271371 | W156: 2974.72896 | X156: 125761.177
A157: 2004 | B157: 1 | C157: 7 | D157: 11 | E157: 0.03347196592 | F157: 0.04082739722 | G157: 0 | H157: 0 | I157: 0.0087801336 | J157: 0.01969195991 | K157: 0.02214523829 | L157: 9.18271371e-05 | M157: 0.00305976384 | N157: 0.1280682859 | O157: 33471.96592 | P157: 40827.39722 | Q157: 0 | R157: 0 | S157: 8780.1336 | T157: 19691.95991 | U157: 22145.23829 | V157: 91.8271371 | W157: 3059.76384 | X157: 128068.2859
A158: 2004 | B158: 1 | C158: 7 | D158: 12 | E158: 0.03497496626 | F158: 0.03936899859 | G158: 0 | H158: 0 | I158: 0.0088038398 | J158: 0.01891631586 | K158: 0.0215780939 | L158: 9.18271371e-05 | M158: 0.00318209472 | N158: 0.1269161363 | O158: 34974.96626 | P158: 39368.99859 | Q158: 0 | R158: 0 | S158: 8803.8398 | T158: 18916.31586 | U158: 21578.0939 | V158: 91.8271371 | W158: 3182.09472 | X158: 126916.1363
A159: 2004 | B159: 1 | C159: 7 | D159: 13 | E159: 0.03390499293 | F159: 0.0392521494 | G159: 0 | H159: 0 | I159: 0.0079146564 | J159: 0.01869946316 | K159: 0.02152789439 | L159: 9.18271371e-05 | M159: 0.003282048 | N159: 0.1246730314 | O159: 33904.99293 | P159: 39252.1494 | Q159: 0 | R159: 0 | S159: 7914.6564 | T159: 18699.46316 | U159: 21527.89439 | V159: 91.8271371 | W159: 3282.048 | X159: 124673.0314
A160: 2004 | B160: 1 | C160: 7 | D160: 14 | E160: 0.03223946884 | F160: 0.04032570693 | G160: 0 | H160: 0 | I160: 0.0083256978 | J160: 0.01813981442 | K160: 0.02181163824 | L160: 9.18271371e-05 | M160: 0.00314330688 | N160: 0.1240774602 | O160: 32239.46884 | P160: 40325.70693 | Q160: 0 | R160: 0 | S160: 8325.6978 | T160: 18139.81442 | U160: 21811.63824 | V160: 91.8271371 | W160: 3143.30688 | X160: 124077.4602
A161: 2004 | B161: 1 | C161: 7 | D161: 15 | E161: 0.03291950373 | F161: 0.03902409177 | G161: 0 | H161: 0 | I161: 0.0081810498 | J161: 0.01820376348 | K161: 0.02120025851 | L161: 9.18271371e-05 | M161: 0.00328254528 | N161: 0.1229030397 | O161: 32919.50373 | P161: 39024.09177 | Q161: 0 | R161: 0 | S161: 8181.0498 | T161: 18203.76348 | U161: 21200.25851 | V161: 91.8271371 | W161: 3282.54528 | X161: 122903.0397
A162: 2004 | B162: 1 | C162: 7 | D162: 16 | E162: 0.03323940406 | F162: 0.03724154997 | G162: 0 | H162: 0 | I162: 0.0075253122 | J162: 0.01839740632 | K162: 0.02123604994 | L162: 9.18271371e-05 | M162: 0.0032372928 | N162: 0.1209688424 | O162: 33239.40406 | P162: 37241.54997 | Q162: 0 | R162: 0 | S162: 7525.3122 | T162: 18397.40632 | U162: 21236.04994 | V162: 91.8271371 | W162: 3237.2928 | X162: 120968.8424
A163: 2004 | B163: 1 | C163: 7 | D163: 17 | E163: 0.03817659234 | F163: 0.0376922664 | G163: 0 | H163: 0 | I163: 0.0061021366 | J163: 0.01787967769 | K163: 0.02184361515 | L163: 9.18271371e-05 | M163: 0.00177926784 | N163: 0.1235653832 | O163: 38176.59234 | P163: 37692.2664 | Q163: 0 | R163: 0 | S163: 6102.1366 | T163: 17879.67769 | U163: 21843.61515 | V163: 91.8271371 | W163: 1779.26784 | X163: 123565.3832
A164: 2004 | B164: 1 | C164: 7 | D164: 18 | E164: 0.04479754332 | F164: 0.03781042161 | G164: 0 | H164: 0 | I164: 0.0054427828 | J164: 0.01867299951 | K164: 0.02105269194 | L164: 9.18271371e-05 | M164: 0.00164997504 | N164: 0.1295182414 | O164: 44797.54332 | P164: 37810.42161 | Q164: 0 | R164: 0 | S164: 5442.7828 | T164: 18672.99951 | U164: 21052.69194 | V164: 91.8271371 | W164: 1649.97504 | X164: 129518.2414
A165: 2004 | B165: 1 | C165: 7 | D165: 19 | E165: 0.04789353023 | F165: 0.03642372992 | G165: 0.00048887 | H165: 2.655163794e-05 | I165: 0.0055974758 | J165: 0.01826446895 | K165: 0.0210317425 | L165: 9.497125562e-05 | M165: 0.00177578688 | N165: 0.1315971272 | O165: 47893.53023 | P165: 36423.72992 | Q165: 488.87 | R165: 26.55163794 | S165: 5597.4758 | T165: 18264.46895 | U165: 21031.7425 | V165: 94.97125562 | W165: 1775.78688 | X165: 131597.1272
A166: 2004 | B166: 1 | C166: 7 | D166: 20 | E166: 0.04804639134 | F166: 0.03529965018 | G166: 0.00195545 | H166: 0.0001062049224 | I166: 0.0051297806 | J166: 0.0177366535 | K166: 0.02049733113 | L166: 0.0001044034182 | M166: 0.00171661056 | N166: 0.1305924756 | O166: 48046.39134 | P166: 35299.65018 | Q166: 1955.45 | R166: 106.2049224 | S166: 5129.7806 | T166: 17736.6535 | U166: 20497.33113 | V166: 104.4034182 | W166: 1716.61056 | X166: 130592.4756
A167: 2004 | B167: 1 | C167: 7 | D167: 21 | E167: 0.04675590089 | F167: 0.03435301665 | G167: 0.00195545 | H167: 0.0001062049224 | I167: 0.0044571674 | J167: 0.01677301978 | K167: 0.0200747325 | L167: 0.0001044034182 | M167: 0.001715616 | N167: 0.1262955116 | O167: 46755.90089 | P167: 34353.01665 | Q167: 1955.45 | R167: 106.2049224 | S167: 4457.1674 | T167: 16773.01978 | U167: 20074.7325 | V167: 104.4034182 | W167: 1715.616 | X167: 126295.5116
A168: 2004 | B168: 1 | C168: 7 | D168: 22 | E168: 0.04261739806 | F168: 0.03373073622 | G168: 0.00195545 | H168: 0.0001062049224 | I168: 0.0058405648 | J168: 0.01624398425 | K168: 0.01971529248 | L168: 0.0001044034182 | M168: 0.00172904256 | N168: 0.1220430767 | O168: 42617.39806 | P168: 33730.73622 | Q168: 1955.45 | R168: 106.2049224 | S168: 5840.5648 | T168: 16243.98425 | U168: 19715.29248 | V168: 104.4034182 | W168: 1729.04256 | X168: 122043.0767
A169: 2004 | B169: 1 | C169: 7 | D169: 23 | E169: 0.03900721077 | F169: 0.03095087873 | G169: 0.00195545 | H169: 0.0001062049224 | I169: 0.0061820948 | J169: 0.01423688028 | K169: 0.01958359963 | L169: 0.0001044034182 | M169: 0.00175937664 | N169: 0.1138860992 | O169: 39007.21077 | P169: 30950.87873 | Q169: 1955.45 | R169: 106.2049224 | S169: 6182.0948 | T169: 14236.88028 | U169: 19583.59963 | V169: 104.4034182 | W169: 1759.37664 | X169: 113886.0992
A170: 2004 | B170: 1 | C170: 7 | D170: 24 | E170: 0.03001164386 | F170: 0.03008953497 | G170: 0.00195545 | H170: 0.0001062049224 | I170: 0.0069997578 | J170: 0.01420398661 | K170: 0.01961919858 | L170: 0.0001044034182 | M170: 0.0016509696 | N170: 0.1047411497 | O170: 30011.64386 | P170: 30089.53497 | Q170: 1955.45 | R170: 106.2049224 | S170: 6999.7578 | T170: 14203.98661 | U170: 19619.19858 | V170: 104.4034182 | W170: 1650.9696 | X170: 104741.1497
A171: 2004 | B171: 1 | C171: 8 | D171: 1 | E171: 0.02458061525 | F171: 0.02835291514 | G171: 0.00195545 | H171: 0.0001062049224 | I171: 0.0064762124 | J171: 0.01537677521 | K171: 0.01965096801 | L171: 0.0001044034182 | M171: 0.00163306752 | N171: 0.09823661187 | O171: 24580.61525 | P171: 28352.91514 | Q171: 1955.45 | R171: 106.2049224 | S171: 6476.2124 | T171: 15376.77521 | U171: 19650.96801 | V171: 104.4034182 | W171: 1633.06752 | X171: 98236.61187
A172: 2004 | B172: 1 | C172: 8 | D172: 2 | E172: 0.02334270574 | F172: 0.02703411894 | G172: 0.00195545 | H172: 0.0001062049224 | I172: 0.004944149 | J172: 0.01589275803 | K172: 0.01912436177 | L172: 0.0001044034182 | M172: 0.0017181024 | N172: 0.09422225423 | O172: 23342.70574 | P172: 27034.11894 | Q172: 1955.45 | R172: 106.2049224 | S172: 4944.149 | T172: 15892.75803 | U172: 19124.36177 | V172: 104.4034182 | W172: 1718.1024 | X172: 94222.25423
A173: 2004 | B173: 1 | C173: 8 | D173: 3 | E173: 0.02263396212 | F173: 0.02623130635 | G173: 0.00195545 | H173: 0.0001062049224 | I173: 0.0065027312 | J173: 0.01510158461 | K173: 0.0190921064 | L173: 0.0001044034182 | M173: 0.0016982112 | N173: 0.09342596023 | O173: 22633.96212 | P173: 26231.30635 | Q173: 1955.45 | R173: 106.2049224 | S173: 6502.7312 | T173: 15101.58461 | U173: 19092.1064 | V173: 104.4034182 | W173: 1698.2112 | X173: 93425.96023
A174: 2004 | B174: 1 | C174: 8 | D174: 4 | E174: 0.02302639552 | F174: 0.02548119851 | G174: 0.00195545 | H174: 0.0001062049224 | I174: 0.0062041938 | J174: 0.01489466196 | K174: 0.01856725359 | L174: 0.0001044034182 | M174: 0.0016062144 | N174: 0.09194597612 | O174: 23026.39552 | P174: 25481.19851 | Q174: 1955.45 | R174: 106.2049224 | S174: 6204.1938 | T174: 14894.66196 | U174: 18567.25359 | V174: 104.4034182 | W174: 1606.2144 | X174: 91945.97612
A175: 2004 | B175: 1 | C175: 8 | D175: 5 | E175: 0.02360225714 | F175: 0.02593032938 | G175: 0.00195545 | H175: 0.0001062049224 | I175: 0.006274107 | J175: 0.0147893472 | K175: 0.01838858786 | L175: 0.0001044034182 | M175: 0.00158333952 | N175: 0.09273402643 | O175: 23602.25714 | P175: 25930.32938 | Q175: 1955.45 | R175: 106.2049224 | S175: 6274.107 | T175: 14789.3472 | U175: 18388.58786 | V175: 104.4034182 | W175: 1583.33952 | X175: 92734.02643
A176: 2004 | B176: 1 | C176: 8 | D176: 6 | E176: 0.02527296978 | F176: 0.02636296185 | G176: 0.00195545 | H176: 0.0001062049224 | I176: 0.0072307928 | J176: 0.01534215808 | K176: 0.01905574152 | L176: 0.0001044034182 | M176: 0.00165544512 | N176: 0.09708612749 | O176: 25272.96978 | P176: 26362.96185 | Q176: 1955.45 | R176: 106.2049224 | S176: 7230.7928 | T176: 15342.15808 | U176: 19055.74152 | V176: 104.4034182 | W176: 1655.44512 | X176: 97086.12749
A177: 2004 | B177: 1 | C177: 8 | D177: 7 | E177: 0.02999827356 | F177: 0.02972713402 | G177: 0.00195545 | H177: 0.0001062049224 | I177: 0.0075783498 | J177: 0.01598465711 | K177: 0.01928398344 | L177: 0.0001044034182 | M177: 0.0016559424 | N177: 0.1063943987 | O177: 29998.27356 | P177: 29727.13402 | Q177: 1955.45 | R177: 106.2049224 | S177: 7578.3498 | T177: 15984.65711 | U177: 19283.98344 | V177: 104.4034182 | W177: 1655.9424 | X177: 106394.3987
A178: 2004 | B178: 1 | C178: 8 | D178: 8 | E178: 0.03396700516 | F178: 0.0354129309 | G178: 0.00195545 | H178: 0.0001062049224 | I178: 0.0081211816 | J178: 0.01507378116 | K178: 0.02076953558 | L178: 0.0001044034182 | M178: 0.00184789248 | N178: 0.1173583852 | O178: 33967.00516 | P178: 35412.9309 | Q178: 1955.45 | R178: 106.2049224 | S178: 8121.1816 | T178: 15073.78116 | U178: 20769.53558 | V178: 104.4034182 | W178: 1847.89248 | X178: 117358.3852
A179: 2004 | B179: 1 | C179: 8 | D179: 9 | E179: 0.0355710749 | F179: 0.03756201717 | G179: 0.0014666 | H179: 7.965437071e-05 | I179: 0.0085354374 | J179: 0.01728177687 | K179: 0.02138413354 | L179: 0.0001012594283 | M179: 0.00161765184 | N179: 0.1235996055 | O179: 35571.0749 | P179: 37562.01717 | Q179: 1466.6 | R179: 79.65437071 | S179: 8535.4374 | T179: 17281.77687 | U179: 21384.13354 | V179: 101.2594283 | W179: 1617.65184 | X179: 123599.6055
A180: 2004 | B180: 1 | C180: 8 | D180: 10 | E180: 0.03309767771 | F180: 0.03893309486 | G180: 0 | H180: 0 | I180: 0.008311233 | J180: 0.020563045 | K180: 0.0215173074 | L180: 9.18271371e-05 | M180: 0.00156593472 | N180: 0.1240801198 | O180: 33097.67771 | P180: 38933.09486 | Q180: 0 | R180: 0 | S180: 8311.233 | T180: 20563.045 | U180: 21517.3074 | V180: 91.8271371 | W180: 1565.93472 | X180: 124080.1198
A181: 2004 | B181: 1 | C181: 8 | D181: 11 | E181: 0.03333910287 | F181: 0.04094297413 | G181: 0 | H181: 0 | I181: 0.0084152992 | J181: 0.02069213979 | K181: 0.02145481683 | L181: 9.18271371e-05 | M181: 0.00142023168 | N181: 0.1263563916 | O181: 33339.10287 | P181: 40942.97413 | Q181: 0 | R181: 0 | S181: 8415.2992 | T181: 20692.13979 | U181: 21454.81683 | V181: 91.8271371 | W181: 1420.23168 | X181: 126356.3916
A182: 2004 | B182: 1 | C182: 8 | D182: 12 | E182: 0.0349773646 | F182: 0.03915729465 | G182: 0 | H182: 0 | I182: 0.0081251996 | J182: 0.02010212529 | K182: 0.02119093564 | L182: 9.18271371e-05 | M182: 0.00157488576 | N182: 0.1252196327 | O182: 34977.3646 | P182: 39157.29465 | Q182: 0 | R182: 0 | S182: 8125.1996 | T182: 20102.12529 | U182: 21190.93564 | V182: 91.8271371 | W182: 1574.88576 | X182: 125219.6327
A183: 2004 | B183: 1 | C183: 8 | D183: 13 | E183: 0.03367871102 | F183: 0.03983772776 | G183: 0 | H183: 0 | I183: 0.0076217442 | J183: 0.01947878545 | K183: 0.02069399251 | L183: 9.18271371e-05 | M183: 0.001603728 | N183: 0.1230065161 | O183: 33678.71102 | P183: 39837.72776 | Q183: 0 | R183: 0 | S183: 7621.7442 | T183: 19478.78545 | U183: 20693.99251 | V183: 91.8271371 | W183: 1603.728 | X183: 123006.5161
A184: 2004 | B184: 1 | C184: 8 | D184: 14 | E184: 0.03195691213 | F184: 0.04031626393 | G184: 0 | H184: 0 | I184: 0.008473962 | J184: 0.01880876838 | K184: 0.02116744587 | L184: 9.18271371e-05 | M184: 0.001603728 | N184: 0.1224189075 | O184: 31956.91213 | P184: 40316.26393 | Q184: 0 | R184: 0 | S184: 8473.962 | T184: 18808.76838 | U184: 21167.44587 | V184: 91.8271371 | W184: 1603.728 | X184: 122418.9075
A185: 2004 | B185: 1 | C185: 8 | D185: 15 | E185: 0.03270438968 | F185: 0.03900740684 | G185: 0 | H185: 0 | I185: 0.0084755692 | J185: 0.01895323634 | K185: 0.02047474474 | L185: 9.18271371e-05 | M185: 0.00155300544 | N185: 0.1212601794 | O185: 32704.38968 | P185: 39007.40684 | Q185: 0 | R185: 0 | S185: 8475.5692 | T185: 18953.23634 | U185: 20474.74474 | V185: 91.8271371 | W185: 1553.00544 | X185: 121260.1794
A186: 2004 | B186: 1 | C186: 8 | D186: 16 | E186: 0.03354346844 | F186: 0.03772748576 | G186: 0 | H186: 0 | I186: 0.0065846984 | J186: 0.01986727815 | K186: 0.01994728196 | L186: 9.18271371e-05 | M186: 0.00158980416 | N186: 0.119351844 | O186: 33543.46844 | P186: 37727.48576 | Q186: 0 | R186: 0 | S186: 6584.6984 | T186: 19867.27815 | U186: 19947.28196 | V186: 91.8271371 | W186: 1589.80416 | X186: 119351.844
A187: 2004 | B187: 1 | C187: 8 | D187: 17 | E187: 0.038283158 | F187: 0.03801433997 | G187: 0 | H187: 0 | I187: 0.0048581638 | J187: 0.01917547385 | K187: 0.01989494936 | L187: 9.18271371e-05 | M187: 0.00159577152 | N187: 0.1219136836 | O187: 38283.158 | P187: 38014.33997 | Q187: 0 | R187: 0 | S187: 4858.1638 | T187: 19175.47385 | U187: 19894.94936 | V187: 91.8271371 | W187: 1595.77152 | X187: 121913.6836
A188: 2004 | B188: 1 | C188: 8 | D188: 18 | E188: 0.04461941256 | F188: 0.03763750388 | G188: 0 | H188: 0 | I188: 0.0041730948 | J188: 0.01964582087 | K188: 0.01995093384 | L188: 9.18271371e-05 | M188: 0.0016683744 | N188: 0.1277869675 | O188: 44619.41256 | P188: 37637.50388 | Q188: 0 | R188: 0 | S188: 4173.0948 | T188: 19645.82087 | U188: 19950.93384 | V188: 91.8271371 | W188: 1668.3744 | X188: 127786.9675
A189: 2004 | B189: 1 | C189: 8 | D189: 19 | E189: 0.04763285052 | F189: 0.03657403819 | G189: 0.00048887 | H189: 2.655163794e-05 | I189: 0.0040975564 | J189: 0.0191573444 | K189: 0.02011491995 | L189: 9.497125562e-05 | M189: 0.0016509696 | N189: 0.1298380719 | O189: 47632.85052 | P189: 36574.03819 | Q189: 488.87 | R189: 26.55163794 | S189: 4097.5564 | T189: 19157.3444 | U189: 20114.91995 | V189: 94.97125562 | W189: 1650.9696 | X189: 129838.0719
A190: 2004 | B190: 1 | C190: 8 | D190: 20 | E190: 0.04743034056 | F190: 0.03532583374 | G190: 0.00195545 | H190: 0.0001062049224 | I190: 0.0044736412 | J190: 0.01819308103 | K190: 0.01955619162 | L190: 0.0001044034182 | M190: 0.00170169216 | N190: 0.1288468386 | O190: 47430.34056 | P190: 35325.83374 | Q190: 1955.45 | R190: 106.2049224 | S190: 4473.6412 | T190: 18193.08103 | U190: 19556.19162 | V190: 104.4034182 | W190: 1701.69216 | X190: 128846.8386
A191: 2004 | B191: 1 | C191: 8 | D191: 21 | E191: 0.04573446055 | F191: 0.03410376406 | G191: 0.00195545 | H191: 0.0001062049224 | I191: 0.0042815808 | J191: 0.01657975578 | K191: 0.02007481155 | L191: 0.0001044034182 | M191: 0.00166688256 | N191: 0.1246073136 | O191: 45734.46055 | P191: 34103.76406 | Q191: 1955.45 | R191: 106.2049224 | S191: 4281.5808 | T191: 16579.75578 | U191: 20074.81155 | V191: 104.4034182 | W191: 1666.88256 | X191: 124607.3136
A192: 2004 | B192: 1 | C192: 8 | D192: 22 | E192: 0.04197770395 | F192: 0.03359919302 | G192: 0.00195545 | H192: 0.0001062049224 | I192: 0.0042201054 | J192: 0.01655399618 | K192: 0.02021684902 | L192: 0.0001044034182 | M192: 0.00167782272 | N192: 0.1204117286 | O192: 41977.70395 | P192: 33599.19302 | Q192: 1955.45 | R192: 106.2049224 | S192: 4220.1054 | T192: 16553.99618 | U192: 20216.84902 | V192: 104.4034182 | W192: 1677.82272 | X192: 120411.7286
A193: 2004 | B193: 1 | C193: 8 | D193: 23 | E193: 0.03849745879 | F193: 0.03095663412 | G193: 0.00195545 | H193: 0.0001062049224 | I193: 0.0050092406 | J193: 0.01477676458 | K193: 0.01927582099 | L193: 0.0001044034182 | M193: 0.00168180096 | N193: 0.1123637784 | O193: 38497.45879 | P193: 30956.63412 | Q193: 1955.45 | R193: 106.2049224 | S193: 5009.2406 | T193: 14776.76458 | U193: 19275.82099 | V193: 104.4034182 | W193: 1681.80096 | X193: 112363.7784
A194: 2004 | B194: 1 | C194: 8 | D194: 24 | E194: 0.02960846965 | F194: 0.03008324579 | G194: 0.00195545 | H194: 0.0001062049224 | I194: 0.0060398576 | J194: 0.01470517149 | K194: 0.0191405115 | L194: 0.0001044034182 | M194: 0.00159776064 | N194: 0.103341075 | O194: 29608.46965 | P194: 30083.24579 | Q194: 1955.45 | R194: 106.2049224 | S194: 6039.8576 | T194: 14705.17149 | U194: 19140.5115 | V194: 104.4034182 | W194: 1597.76064 | X194: 103341.075
A195: 2004 | B195: 1 | C195: 9 | D195: 1 | E195: 0.02646978485 | F195: 0.02863094412 | G195: 0.00195545 | H195: 0.0001062049224 | I195: 0.0064271928 | J195: 0.01596521171 | K195: 0.01834523629 | L195: 0.0001044034182 | M195: 0.00162163008 | N195: 0.09962605819 | O195: 26469.78485 | P195: 28630.94412 | Q195: 1955.45 | R195: 106.2049224 | S195: 6427.1928 | T195: 15965.21171 | U195: 18345.23629 | V195: 104.4034182 | W195: 1621.63008 | X195: 99626.05819
A196: 2004 | B196: 1 | C196: 9 | D196: 2 | E196: 0.0244672073 | F196: 0.02754515346 | G196: 0.00195545 | H196: 0.0001062049224 | I196: 0.0073256176 | J196: 0.0153193489 | K196: 0.01782016728 | L196: 0.0001044034182 | M196: 0.00161566272 | N196: 0.09625921561 | O196: =E196*1000000 -> 24467.2073 | P196: =F196*1000000 -> 27545.15346 | Q196: =G196*1000000 -> 1955.45 | R196: =H196*1000000 -> 106.2049224 | S196: =I196*1000000 -> 7325.6176 | T196: =J196*1000000 -> 15319.3489 | U196: =K196*1000000 -> 17820.16728 | V196: =L196*1000000 -> 104.4034182 | W196: =M196*1000000 -> 1615.66272 | X196: =SUM(O196:W196) -> 96259.21561
A197: 2004 | B197: 1 | C197: 9 | D197: 3 | E197: 0.02392558968 | F197: 0.02684342993 | G197: 0.00195545 | H197: 0.0001062049224 | I197: 0.0079106384 | J197: 0.01504408669 | K197: 0.01819077742 | L197: 0.0001044034182 | M197: 0.001641024 | N197: 0.09572160445 | O197: 23925.58968 | P197: 26843.42993 | Q197: 1955.45 | R197: 106.2049224 | S197: 7910.6384 | T197: 15044.08669 | U197: 18190.77742 | V197: 104.4034182 | W197: 1641.024 | X197: 95721.60445
A198: 2004 | B198: 1 | C198: 9 | D198: 4 | E198: 0.02432106292 | F198: 0.02593843018 | G198: 0.00195545 | H198: 0.0001062049224 | I198: 0.0073979416 | J198: 0.01440316219 | K198: 0.01796732955 | L198: 0.0001044034182 | M198: 0.0016459968 | N198: 0.09383998159 | O198: 24321.06292 | P198: 25938.43018 | Q198: 1955.45 | R198: 106.2049224 | S198: 7397.9416 | T198: 14403.16219 | U198: 17967.32955 | V198: 104.4034182 | W198: 1645.9968 | X198: 93839.98159
A199: 2004 | B199: 1 | C199: 9 | D199: 5 | E199: 0.02508969745 | F199: 0.02617714553 | G199: 0.00195545 | H199: 0.0001062049224 | I199: 0.0070660548 | J199: 0.01484157316 | K199: 0.01831669267 | L199: 0.0001044034182 | M199: 0.00157836672 | N199: 0.09523558867 | O199: 25089.69745 | P199: 26177.14553 | Q199: 1955.45 | R199: 106.2049224 | S199: 7066.0548 | T199: 14841.57316 | U199: 18316.69267 | V199: 104.4034182 | W199: 1578.36672 | X199: 95235.58867
A200: 2004 | B200: 1 | C200: 9 | D200: 6 | E200: 0.02749816579 | F200: 0.02694693578 | G200: 0.00195545 | H200: 0.0001062049224 | I200: 0.0072179352 | J200: 0.01677074376 | K200: 0.01871462603 | L200: 0.0001044034182 | M200: 0.0017479392 | N200: 0.1010624041 | O200: 27498.16579 | P200: 26946.93578 | Q200: 1955.45 | R200: 106.2049224 | S200: 7217.9352 | T200: 16770.74376 | U200: 18714.62603 | V200: 104.4034182 | W200: 1747.9392 | X200: 101062.4041
... 2050 more rows

Sheet Input to CA model
A2: Feed into OEB Cost Allocation Model (version 50) sheet "I6 Customer Data", row 27
D3: 1 | E3: 2 | F3: 3 | G3: 4 | H3: 5 | I3: 6 | J3: 7 | K3: 8 | L3: 9 | M3: 10 | N3: 11 | O3: 12 | P3: 13 | Q3: 14 | R3: 15 | S3: 16 | T3: 17 | U3: 18 | V3: 19 | W3: 20
B4: ID | C4: Total | D4: Residential | E4: GS>50kW | F4: Street Lighting | G4: Sentinel Lighting | H4: Large User | I4: GS < 50 kW | J4: Intermediate | K4: USL | L4: Stand By
A6: kWh - 30 year weather normalized amount | C6: 911304320 | D6: 249594959 | E6: 290220979.8 | F6: 7885368.93 | G6: 440186.37 | H6: 49955028.97 | I6: 107878783.5 | J6: 171967212.2 | K6: 885330 | L6: 32476471.14
A9: Feed into OEB Cost Allocation Model sheet (version 50) "I8 Demand Data", row 40, 45, 50, 55, 61 and 67
D10: 1 | E10: 2 | F10: 3 | G10: 4 | H10: 5 | I10: 6 | J10: 7 | K10: 8 | L10: 9 | M10: 10 | N10: 11 | O10: 12 | P10: 13 | Q10: 14 | R10: 15 | S10: 16 | T10: 17 | U10: 18 | V10: 19 | W10: 20
A11: Customer Classes | C11: Total | D11: Residential | E11: GS>50kW | F11: Street Lighting | G11: Sentinel Lighting | H11: Large User | I11: GS < 50 kW | J11: Intermediate | K11: USL | L11: Stand By
A13: CO-INCIDENT PEAK (kW)
A15: 1 CP
A16: Total Sytem CP | B16: DCP1 | C16: 168330.5476 | D16: 61884.63615 | E16: 55667.94949 | F16: 0 | G16: 0 | H16: 7737.8644 | I16: 13413.6635 | J16: 24339.94278 | K16: 94.88804167 | L16: 5191.6032
A18: 4 CP
A19: Total Sytem CP | B19: DCP4 | C19: 628234.8371 | D19: 208253.2401 | E19: 199187.2654 | F19: 0 | G19: 0 | H19: 31104.9452 | I19: 70857.13236 | J19: 98114.60162 | K19: 373.4303575 | L19: 20344.22208
A21: 12 CP
A22: Total Sytem CP | B22: DCP12 | C22: 1650343.086 | D22: 509984.3214 | E22: 531985.0741 | F22: 977.74 | G22: 53.54612786 | H22: 87374.2226 | I22: 198502.3233 | J22: 269257.7437 | K22: 1127.015544 | L22: 51081.09888
A24: NON CO_INCIDENT PEAK (kW)
A26: 1 NCP
A27: Classification NCP from Load Data Provider | B27: DNCP1 | C27: 213366.6188 | D27: 69679.85999 | E27: 62957.46978 | F27: 1955.45 | G27: 115.6760336 | H27: 9881.0656 | I27: 32150.70153 | J27: 27482.40005 | K27: 118.3637642 | L27: 9025.632
A29: 4 NCP
A30: Classification NCP from Load Data Provider | B30: DNCP4 | C30: 782244.0409 | D30: 249471.4969 | E30: 240280.6688 | F30: 7821.8 | G30: 449.5113113 | H30: 38489.6274 | I30: 102182.1904 | J30: 107796.4266 | K30: 457.3742461 | L30: 35294.94528
A32: 12 NCP
A33: Classification NCP from Load Data Provider | B33: DNCP12 | C33: 1925816.061 | D33: 596300.0671 | E33: 566708.7885 | F33: 23465.4 | G33: 1314.785766 | H33: 112506.009 | I33: 234087.814 | J33: 304728.6373 | K33: 1323.075401 | L33: 85381.48416
